Workbook

Sheet Cover Page
K2: Template version 25.1a (for incinerators) - 27/11/25
K4: Note that there is another version of this template available for co-incinerators
K13: Notes:
K14: This template may require adjustments by individual operators to meet specific reporting requirements as defined in the site Permit(s)
B29: Annual Performance Report 2025
B31: Permit EPR/GP3031JB
B33: Issue Date:
B37: Vital Energi (Drakelow) LTD
B39: Year: | C39: 2025
B41: Address: | C41: Walton Road, Burton upon Trent, Staffordshire, DE15 9NG
B43: Tel: | C43: 01254 942191
B45: Email: | C45: nick.dale@vitalenergi.co.uk
B47: Prepared by: | C47: N Dale | F47: Position: | G47: Operations Manager
B49: Approved by: | C49: N Dale | F49: Position: | G49: Operations Manager
B51: Version: | C51: 2
B53: Issue Date: | C53: 2026-12-03

Sheet Facility Info
A1: =+'Cover Page'!$B$29 -> Annual Performance Report 2025 | E1: =+'Cover Page'!$B$33 -> Issue Date:
A3: Plant Description and Design | K3: Notes:
A5: "The installation will utilise advanced thermal treatment technology, namely gasification, as a means of processing refuse derived fuel (RDF) waste to produce a combustible syngas which will be used to raise steam and generate energy. The energy will be recovered from the installation in the form of electricity for export to the national grid. In addition the facility will be ‘CHP ready’ so that when a district heating market becomes available, the provision of heat to supply a local network will be achievable without any significant modifications to the installed system. The facility has a total capacity of approximately 77MW (thermal input) and is capable of generating up to 18 MWe (gross) of electricity with the capacity to export 15MWe to the national grid. The installation is capable of processing up to 169,000 tons of RDF per annum via 3 gasification lines. . All incoming RDF will be processed and then stored indoors, within a dedicated fuel bunker, prior to being loaded to the gasification plant. There is no external storage of RDF. The gasification process takes place in two zones within the gasifiers, i.e. in the gasification zone, where the RDF will be heated, and in the oxidation zone, where the resultant syngas is combusted. Combustion gases are passed to boilers to raise superheated steam, which is then used in a steam turbine to generate electricity. The plant is operated by a dedicated shift team who are based in the facilities Control Room. The shift staff work on a rolling Rota and the plant is operated via a DCS. The operations team are supplemented by a 'day' Maintenance team who provide both reactive and proactive maintenance to the plant. The installation is located at National Grid Reference SK 23250 19810, approximately 3km south of the center of Burton-upon-Trent in Staffordshire, on the site of the former Drakelow C Power Station" | K5: Include summary of plant design, design capacity, no. of combustion lines, electrical and heat capacity and any other general information that describes the facility, its location and purpose
A20: Summary of Operational Processes and Procedures
A22: "Cleaning of flue gases and pollution control consists of several steps: firstly Selective Non-Catalytic Reduction (SNCR) is used to reduce oxides of nitrogen through the injection of a urea solution into the combustion chambers. Then once the flue gas has passed through the boilers it receives further clean-up. The neutralisation of acid gases is achieved through the injection of hydrated lime, while the removal of heavy metals and dioxins is achieved through the injection of powdered activated carbon into the gas stream. Particulate matter is removed in bag filters. Cleaned flue gases arising from each gasification line are discharged to atmosphere through a single, 55 meter tall stack, and will be monitored continuously as required by the permit and in accordance with MCERTS. Uncontaminated surface water run-off from roofs and clean yard areas will be discharged to the surface water drainage system via an oil separator. Process wastewater consisting of boiler blowdown (principally demineralised water with elevated pH) and effluent from the sewage treatment plant will be discharged to surface water following monitoring and correction for pH and temperature. Any other wastewater arising from process plant will be collected in the effluent tank and taken off-site for disposal. There are no discharges to public foul sewer from the installation. The gasification process results in several waste streams, including bottom ash, fly ash, air pollution control (APC) residues from the flue gas treatment process; and ferrous and non-ferrous metals from the on-site pre-screening process. These materials will be temporarily stored on site prior to recovery or disposal in a suitably licensed off-site facility. RDF (Refuse Derived Fuel), which will be delivered to site by road, will arrive pre-treated to a required specification but will receive further pre-screening on-site in the Mechanical Polishing Plant (MPP) to remove any residual ferrous and non-ferrous metals for off-site recycling" | K22: Include summary of key processes and procedures such as (but not limited to); waste reception, control rooms, grate, bed and boiler, energy & heat generation, cooling systems, residue management, emission controls, health and safety systems, maintenance

Sheet Operational Data
A1: =+'Cover Page'!$B$29 -> Annual Performance Report 2025 | E1: =+'Cover Page'!$B$33 -> Issue Date:
A3: Operational Data
A4: Plant Size: | B4: 169 | D4: tonnes pa | J4: Notes:
A5: Nominal net thermal input: | C5: MWth | J5: * Export capacity = nominal generation capacity at the generator terminals minus nominal parasitic load. ** CHP and district heating plants only - put N/A if no heat export. *** Combusted tonnage = tonnes delivered in period + (tonnes in bunker at start of period – tonnes in bunker at end of period), or equivalent calculation depending on plant type **** Availability Definition: The availability of a line is to be calculated by the number of hours the line reported Continuously Monitored emission levels to the Regulator through the calendar year divided by the total number of hours in that year. The overall plant availability is calculated as the mean of all lines in the plant. For clarity this includes periods of abnormal operation. Rationale: The primary function of an Energy from Waste facility is the disposal of waste. It follows therefore that the availability of a plant is determined by the period of time a facility spends undertaking this activity. *****NCV of waste: This should be completed for all plants which have a boiler. Calculate using total thermal power produced by boiler/boiler efficiency, or other suitable calculation.
A6: Nominal electrical export capacity*: | B6: 15 | C6: MWe
A7: Nominal heat export capacity**: | C7: MWth
A8: No. of combustion lines: | B8: 3 | C8: No. of steam turbines: | E8: 1
A10: Waste types received | B10: Unit | C10: Q1 | D10: Q2 | E10: Q3 | F10: Q4 | G10: Year Total | H10: %
A11: Household / Local Authority | B11: tonnes | C11: 0 | D11: 0 | E11: 0 | F11: 0 | G11: =SUM(C11:F11) -> 0 | H11: =IF(G11>0,G11/$G$21,"-") -> -
A12: Commercial & Industrial | C12: 0 | D12: 0 | E12: 0 | F12: 0 | G12: =SUM(C12:F12) -> 0 | H12: -
A13: Hazardous | C13: 0 | D13: 0 | E13: 0 | F13: 0 | G13: 0 | H13: -
A14: Clinical | C14: 0 | D14: 0 | E14: 0 | F14: 0 | G14: 0 | H14: -
A15: Waste wood (biomass) | C15: 0 | D15: 0 | E15: 0 | F15: 0 | G15: 0 | H15: -
A16: Refuse Derived Fuel (incl. SRF) - H'hold/LA | C16: 0 | D16: 0 | E16: 0 | F16: 0 | G16: =SUM(C16:F16) -> 0 | H16: -
A17: Refuse Derived Fuel (incl. SRF) - C&I | C17: 30102 | D17: 37352 | E17: 25410 | F17: 37964 | G17: 130828 | H17: 1
A18: Other [Please specify] | C18: 0 | D18: 0 | E18: 0 | F18: 0 | G18: 0 | H18: -
A19: Other [Please specify] | C19: 0 | D19: 0 | E19: 0 | F19: 0 | G19: 0 | H19: -
A20: Other [Please specify] | C20: 0 | D20: 0 | E20: 0 | F20: 0 | G20: 0 | H20: -
A21: Total waste received | C21: =SUM(C11:C20) -> 30102 | D21: =SUM(D11:D20) -> 37352 | E21: =SUM(E11:E20) -> 25410 | F21: =SUM(F11:F20) -> 37964 | G21: 130828
A22: Rejected Waste | C22: 0 | D22: 22 | E22: 0 | F22: 0 | G22: =SUM(C22:F22) -> 22 | H22: =IF(G22>0,G22/$G$21,"-") -> 0.0001681597212
A23: Unprocessed waste transferred out | C23: 0 | D23: 0 | E23: 0 | F23: 0 | G23: =SUM(C23:F23) -> 0 | H23: =IF(G23>0,G23/$G$21,"-") -> -
A24: Total waste combusted *** | C24: 30102 | D24: 37352 | E24: 25410 | F24: 37964 | G24: =SUM(C24:F24) -> 130828
A26: Energy Usage / Export | B26: Unit | C26: Q1 | D26: Q2 | E26: Q3 | F26: Q4 | G26: Year Total | H26: KWh/te | J26: Password for protected cells A password has been set to prevent accidental editing of cells with formulae. If you still need to make an edit for some reason then the password = 1234
A27: Power generated at generator terminals | B27: MWh | C27: 22329 | D27: 26855 | E27: 19173 | F27: 30754 | G27: =SUM(C27:F27) -> 99111 | H27: =IF(G27>0,G27*1000/$G$24,"-") -> 757.5671875
A28: Power exported to grid and other external user(s) | C28: 19302 | D28: 23238 | E28: 16266 | F28: 26525 | G28: =SUM(C28:F28) -> 85331 | H28: =IF(G28>0,G28*1000/$G$24,"-") -> 652.238053
A29: Power imported | C29: 240 | D29: 266 | E29: 603 | F29: 75 | G29: 1184 | H29: =IF(G29>0,G29*1000/$G$24,"-") -> 9.050050448
A30: Indicative parasitic load | B30: % | C30: =IF(C27>0,(C27-C28)/C27,"-") -> 0.1355636168 | D30: =IF(D27>0,(D27-D28)/D27,"-") -> 0.1346862782 | E30: 0.1516194649 | F30: 0.1375105677 | G30: =IF(G27>0,1-G28/(G27+G29),"-") -> 0.1491998604
A31: Thermal Energy Exported ** | C31: 0 | D31: 0 | E31: 0 | F31: 0 | G31: =SUM(C31:F31) -> 0 | H31: =IF(G31>0,G31*1000/$G$24,"-") -> -
A32: R1 value (if applicable) | B32: R1 | C32: - | D32: - | E32: - | F32: -
A34: Waste Disposal & Recovery | B34: Unit | C34: Q1 | D34: Q2 | E34: Q3 | F34: Q4 | G34: Year Total | H34: % inputs
A35: APC Residues - produced | B35: tonnes | C35: 1657 | D35: 2162 | E35: 1425 | F35: 2262 | G35: =SUM(C35:F35) -> 7506 | H35: =IF(G35>0,G35/$G$24,"-") -> 0.05737303941
A36: IBA - produced | C36: 5707 | D36: 7083 | E36: 4263 | F36: 5829 | G36: 22882 | H36: =IF(G36>0,G36/$G$24,"-") -> 0.1749013973
A37: Metals recycling | C37: 589 | D37: 673 | E37: 451 | F37: 735 | G37: =SUM(C37:F37) -> 2448 | H37: 0.01871159079
A38: Under Grate Riddlings (Haz. IBA) | C38: 330 | D38: 711 | E38: 541 | F38: 509 | G38: =SUM(C38:F38) -> 2091 | H38: 0.01598281713
A39: Boiler Fly Ash | C39: 312 | D39: 243 | E39: 318 | F39: 292 | G39: 1165 | H39: 0.008904821598
A40: Other | C40: 0 | D40: 0 | E40: 0 | F40: 0 | G40: 0 | H40: -
A42: Raw Material Usage | B42: Unit | C42: Q1 | D42: Q2 | E42: Q3 | F42: Q4 | G42: Year Total | H42: Qty./te
A43: Mains Water | B43: ltrs | F43: 19237000 | G43: =SUM(C43:F43) -> 19237000 | H43: =IF(G43>0,G43/$G$24,"-") -> 147.0403889 | J43: Data taken November 24 - November 25
A44: Other Water | B44: ltrs | C44: 0 | D44: 0 | E44: 0 | F44: 0 | G44: 0 | H44: =IF(G44>0,G44/$G$24,"-") -> -
A45: Ammonia | B45: kgs | C45: 0 | D45: 0 | E45: 0 | F45: 0 | G45: 0 | H45: -
A46: Urea | B46: kgs | C46: 200761 | D46: 182039 | E46: 94452 | F46: 150722 | G46: =SUM(C46:F46) -> 627974 | H46: 4.799996943
A47: Activated Carbon | B47: kgs | C47: 20000 | D47: 20000 | E47: 10100 | F47: 30340 | G47: 80440 | H47: 0.6148530896
A48: Lime / hydrated lime | B48: kgs | C48: 943000 | D48: 1131000 | E48: 725000 | F48: 1113000 | G48: 3912000 | H48: 29.90185587
A49: Fuel oil | B49: ltrs | C49: 0 | D49: 0 | E49: 0 | F49: 0 | G49: 0 | H49: -
A50: Gas | B50: m3 | C50: 5803 | D50: 2115 | E50: 3255 | F50: 2742 | G50: 13915 | H50: 0.1063610236
A51: Other | G51: 0 | H51: -
A53: Summary | B53: Line/Unit | C53: Q1 | D53: Q2 | E53: Q3 | F53: Q4 | G53: Year Total | I53: Hrs in year
A54: Availability of waste combustion by line, hrs **** | B54: 1 | C54: 1826 | D54: 1888 | E54: 1432 | F54: 2082 | G54: =SUM(C54:F54) -> 7228 | H54: =+G54/$I$54 -> 0.8251141553 | I54: 8760 | J54: Change this figure to 8784 in a leap year
B55: 2 | C55: 1683 | D55: 1910 | E55: 1628 | F55: 1889 | G55: 7110 | H55: =+G55/$I$54 -> 0.8116438356
B56: 3 | C56: 1556 | D56: 1984 | E56: 1364 | F56: 1902 | G56: 6806 | H56: 0.7769406393
B57: 4 | C57: N/A | D57: N/A | E57: N/A | F57: N/A | G57: 0 | H57: 0
B58: 5 | C58: N/A | D58: N/A | E58: N/A | F58: N/A | G58: =SUM(C58:F58) -> 0 | H58: 0
A59: Hours of turbine operations, hrs | B59: 1 | C59: 1977 | D59: 2008 | E59: 1691 | F59: 2183 | G59: 7859 | H59: 0.8971461187
A60: Hours of turbine operations, hrs | B60: 2 | C60: N/A | D60: N/A | E60: N/A | F60: N/A | G60: 0 | H60: 0
A61: Hours of heat / steam export** | B61: hours | C61: N/A | D61: N/A | E61: N/A | F61: N/A | G61: 0 | H61: =IF(B61>0,G60/I54,"n/a") -> 0
A62: Net calorific value of waste***** | B62: MJ/kg | C62: 11 | D62: 11 | E62: 12 | F62: 12 | G62: 12
A63: Abnormal operation events | B63: qty. | C63: 0 | D63: 0 | E63: 0 | F63: 0 | G63: 0 | H63: =IF(G63>0,"yes","no") -> no
A64: Abnormal operation duration | B64: hours | C64: 4 | D64: 1 | E64: 3 | F64: 1 | G64: 9 | H64: =+(G64)/I54 -> 0.00102739726 | J64: To confirm as per CAR ********
A65: Permit Breaches | B65: qty. | C65: 1 | D65: 2 | E65: 1 | F65: 1 | G65: 5 | H65: =IF(G65>0,"yes","no") -> yes | J65: To confirm as per CAR ********

Sheet Operational Summary
A1: =+'Cover Page'!$B$29 -> Annual Performance Report 2025 | E1: =+'Cover Page'!$B$33 -> Issue Date:
A3: Summary of Plant Operations and Maintenance during the reporting year | K3: Notes:
A5: The facility annual maintenance outage was completed in stages between the 11th July and 31st August 2025. The purpose of the annual shutdown was to service and maintain all items of equipment that cannot be serviced or maintained while the plant is operating throughout the year. The shutdown included cleaning and inspection works to the Boiler and Flue Gas Treatment Plant, statutory inspections, balance of plant maintenance, defect rectification works, and any outstanding annual preventative maintenance routines, some of which are listed below: Rope Access Cleaning Boiler Cleaning and Inspection Superheater Cleaning and Inspection Boiler Internal Shot blasting Boiler Non-Destructive Examination PSSR valve and pressure vessel inspections Refractory Repairs Economiser Cleaning and Inspection Internal Boiler Pressure Parts Inspection Rotating Fan Maintenance Bag House Damper Cleaning Bag House Filter Inspections Boiler Conveyor Maintenance inc motor/gearbox overhauls Combustion Grate Maintenance Instrumentation Calibration Emissions Monitoring Equipment Maintenance UPS Maintenance inc battery drop test LV Switchboard Maintenance LV breaker maintenance DCS Maintenance Turbine Generator Maintenance Variable Speed Drive Maintenance FGT bag filter inspection / maintenance Saxlund Walking Floor inspections Fuel Feed Conveyor inspections APCR screw replacements Fuel Processing (Shredder) maintenance Under Grate ladder section strengthening improvements Modification to metering bin screws Ash conveyor replacements Additional ‘under boiler’ hopper added to all three streams Drakelow’s first year of Plant Operations inevitably threw up some issues. In addition to the planned annual maintenance outages in July and August, there were one-week stops in January and February for initial post commissioning inspections and further internal inspections carried out in April / May. In total there were 150 stops across all three streams ranging from 30 minutes in duration for a blocked feed conveyor, to 120 hours for a combustion grate bar failure. Downtime analysis will provide guidance for the 2026 annual shutdown work package with additional planned improvements likely to considerably increase reliability. | K5: Include summary of key operational and/or maintenance activity undertaken in the year, such as any major component upgrades and/or replacements
K30: Provide a very brief reason for plant shut-down e.g. "Shut-down prior to major outage"; "Emergency shut-down due to boiler tube leak". All emergency shut-downs must be listed (irrespective of whether or not they were required to be reported to the EA). There is no need to include periods of hot-standby here (e.g. to clear feed chute hopper blockages). For clinical waste incinerators which require regular shut-downs for boiler cleaning, there is no need to record these here (only those prior to major outages, and emergency shut-downs).

Sheet Perf. Form 1
A1: =+'Cover Page'!C39 -> 2025 | B1: Annual Reporting Performance Form 1
A3: =+'Cover Page'!B31 -> Permit EPR/GP3031JB | F3: Operator: | G3: =+'Cover Page'!B37 -> Vital Energi (Drakelow) LTD
A4: Facility: | B4: =+'Cover Page'!B33:I33 -> Issue Date: | F4: Form: | G4: Performance 1
A6: Reporting Period from: | D6: Wednesday January 1, 2025 | F6: to: | G6: Wednesday, December 31, 2025
A8: =+A1 -> 2025 | B8: Annual Reporting of Waste Disposal and Recovery
A9: Waste Description | C9: Disposal Route(s) | E9: Disposal Tonnes | G9: Recovery Tonnes | I9: % / tonne of waste incinerated
A10: 1) Hazardous Wastes
A11: APC Residues | C11: Castle Env. Derbyshire. (D09) Augean ENRMF, Northamptonshire. (D09) | E11: 7506.3 | G11: 0 | I11: =IF((E11+G11)>0,(E11+G11)/'Operational Data'!$G$24, "-") -> 0.0573753325
A12: UGA | C12: Augean ENRMF, Northamptonshire. (D15) Augean Thornhaugh, Peterborough (D15) | E12: 2091.3 | G12: 0 | I12: =IF((E12+G12)>0,(E12+G12)/'Operational Data'!$G$24, "-") -> 0.01598511022
A13: BFA | C13: Augean ENRMF, Northamptonshire. (D09) | E13: 1166.2 | G13: 0 | I13: =IF((E13+G13)>0,(E13+G13)/'Operational Data'!$G$24, "-") -> 0.008913993946
I14: =IF((E14+G14)>0,(E14+G14)/'Operational Data'!$G$24, "-") -> -
A15: Total Hazardous Waste | E15: =SUM(E11:F14) -> 10763.8 | G15: =SUM(G11:H14) -> 0 | I15: =IF((E15+G15)>0,(E15+G15)/'Operational Data'!$G$24, "-") -> 0.08227443666
A17: 2) Non-Hazardous Wastes
A18: IBA | C18: Land Recovery Ltd, Staffordshire. (D02) Johnsons Aggregates, Derbyshire. (R13) Fortis A303 Andover, Hampshire (R13) | E18: 22881 | G18: 22881 | I18: =IF((E18+G18)>0,(E18+G18)/'Operational Data'!$G$24, "-") -> 0.3497875073
A19: Ferrous Metal | C19: Morris & Co, South Yorkshire. (R04) | E19: 1592.3 | G19: 1178.3 | I19: =IF((E19+G19)>0,(E19+G19)/'Operational Data'!$G$24, "-") -> 0.02117742379
A20: None-Ferrous Metal | C20: Morris & Co, South Yorkshire. (R04) | E20: 855 | G20: 555.8 | I20: =IF((E20+G20)>0,(E20+G20)/'Operational Data'!$G$24, "-") -> 0.0107836243
A21: Process Water (Marsh Tank) | C21: (Filtercake) Veolia ES (UK) LTD non hazardous landfill. (Final Effluent) Discharge under consent to Severn Trent. | E21: 89.5 | G21: 0 | I21: =IF((E21+G21)>0,(E21+G21)/'Operational Data'!$G$24, "-") -> 0.0006841043202
I22: =IF((E22+G22)>0,(E22+G22)/'Operational Data'!$G$24, "-") -> -
A23: Total Non-Hazardous Waste | E23: =SUM(E18:F22) -> 25417.8 | G23: =SUM(G18:H22) -> 24615.1 | I23: =IF((E23+G23)>0,(E23+G23)/'Operational Data'!$G$24, "-") -> 0.3824326597
A24: TOTAL WASTE | E24: =+E23+E15 -> 36181.6 | G24: =+G23+G15 -> 24615.1 | I24: =IF((E24+G24)>0,(E24+G24)/'Operational Data'!$G$24, "-") -> 0.4647070963
A26: Operator’s comments :
A31: =+A1 -> 2025 | B31: Annual Reporting of Water and Other Raw Material Usage
A32: Raw Material | E32: Usage | G32: Unit | H32: Specific Usage | J32: Unit
A33: Mains Water | E33: 19237 | G33: m3 | H33: =IF(E33>0,E33/'Operational Data'!$G$24,"-") -> 0.1470403889 | J33: m3/te
A34: Total Water | E34: 19237 | G34: m3 | H34: =IF(E34>0,E34/'Operational Data'!$G$24,"-") -> 0.1470403889 | J34: m3/te
A35: Urea / Ammonia | E35: 627972.65 | G35: kg | H35: =IF(E35>0,E35/'Operational Data'!$G$24,"-") -> 4.799986624 | J35: kg/te
A36: Activated Carbon | E36: =+'Operational Data'!G47 -> 80440 | G36: kg | H36: =IF(E36>0,E36/'Operational Data'!$G$24,"-") -> 0.6148530896 | J36: kg/te
A37: Lime / hydrated lime / Sodium Bicarb. | E37: =+'Operational Data'!G48 -> 3912000 | G37: kg | H37: =IF(E37>0,E37/'Operational Data'!$G$24,"-") -> 29.90185587 | J37: kg/te
A39: Operator’s comments :
A40: Incomplete data for the site main water usage as the meter was damaged in Q4. Data is November 24 - November 25
A43: =+A31 -> 2025 | B43: Annual Reporting of other performance indicators
A44: Parameter | C44: Results by Line
C45: A1 | D45: A2 | E45: A3 | F45: A4 | G45: A5 | I45: Turbine 1 | J45: Turbine 2
A46: Operating hours for the year, hours | C46: 7228 | D46: 7111 | E46: 6807 | F46: N/A | G46: N/A | I46: 6858 | J46: N/A
A47: Number of periods of abnormal operation, qty. | C47: 4 | D47: 1 | E47: 3 | F47: N/A | G47: N/A | I47: N/A | J47: N/A
A48: Cumulative hours of abnormal operation for this year, hours | C48: 2.5 | D48: 0.5 | E48: 2 | F48: N/A | G48: N/A | I48: N/A | J48: N/A
A50: Operator’s comments :
A51: AO to be confirmed against CAR *************
A54: Signed: | G54: Date: | H54: 2026-12-03

Sheet Energy Form 1
A1: =+'Cover Page'!C39 -> 2025 | B1: Annual Reporting of Energy Usage/Export
A3: =+'Cover Page'!B31 -> Permit EPR/GP3031JB | F3: Operator: | G3: =+'Cover Page'!B37 -> Vital Energi (Drakelow) LTD
A5: Facility: | B5: =+'Cover Page'!B33:I33 -> Issue Date: | F5: Form: | G5: Energy 1
A7: Reporting Period from: | D7: =+'Perf. Form 1'!D6:E6 -> Wednesday January 1, 2025 | F7: to: | G7: =+'Perf. Form 1'!G6:H6 -> Wednesday, December 31, 2025
A9: Energy Source | D9: Energy Usage | F9: Unit | G9: Specific Usage (KWh/tonne incinerated
A10: Electricity Produced | D10: =+'Operational Data'!G27 -> 99111 | F10: MWh | G10: =+'Operational Data'!H27 -> 757.5671875
A11: Electricity Imported | D11: =+'Operational Data'!G29 -> 1184 | F11: MWh | G11: =+'Operational Data'!H29 -> 9.050050448
A12: Electricity Exported | D12: =+'Operational Data'!G28 -> 85331 | F12: MWh | G12: =+'Operational Data'!H28 -> 652.238053
A13: Gas Oil | D13: N/A | F13: tonnes
A14: Steam/hot water exported | D14: =+'Operational Data'!G31 -> 0 | F14: GWh | G14: =+'Operational Data'!H31 -> -
A18: Operator’s comments :
A19: N/A
A29: Signed: | G29: Date: | H29: 2026-12-03

Sheet Permit Compliance
A1: =+'Cover Page'!$B$29 -> Annual Performance Report 2025 | E1: =+'Cover Page'!$B$33 -> Issue Date:
A3: Summary of Permit Compliance
A5: Compliance with permit limits for continuously monitored pollutants
A7: The plant met its emission limits as shown in the table below:
A8: Substance | C8: Percentage time compliant during operationNote 1 | L8: Notes:
C9: Half-hourly limit | F9: Daily limit | L9: Note 1: Please report to 2 decimal places, i.e. xx.xx% Note 2: Please enter into this table any permit non-compliances that the EA has given a CCS score for. Please also enter any other non-compliances which you have notified to the EA (e.g. ELV exceedances) but which have not yet been assessed by the EA. There is no need to enter any notifications which were subsequently assessed by the EA not to be permit breaches. Note 3: Please enter information here (rather than just referencing the notifications that were sent to the EA) including where relevant the incineration line reference, pollutant and value of the measured result for any ELV exceedances.
A10: Particulates | C10: 0.9999 | F10: 0.999
A11: Oxides of nitrogen | C11: 0.9999 | F11: 0.9945
A12: Sulphur dioxide | C12: 0.9998 | F12: 0.9936
A13: Carbon monoxide | C13: 0.9999 | F13: 1
A14: Total organic carbon | C14: 0.9999 | F14: 1
A15: Hydrogen chloride | C15: 0.9999 | F15: 0.999
A16: Hydrogen fluoride | C16: 1 | F16: 1
C17: 0.9999 | F17: 0.998
A19: Summary of non-compliances under the permit Note 2
A20: Date | B20: Summary of non-compliance Note 3 | D20: Reason | G20: Measures taken to prevent reoccurrence | H20: CCS score if applicable*
H21: Impact | I21: Root cause
A22: 2025-03-07 | B22: Stream 3 SO2. 143.6mg/Nm3 over the daily average. | D22: A Turbine trip, followed by the feeding of RDF, impacted three half hourly readings for SO2 emissions on Stream 3, and consequently the daily average. This is believed to fit the definition of OTNOC rather than Abnormal Operation. The daily average emission was calculated to be 146.3 mg/Nm3 and exceeded the backstop limit of 50 mg/Nm3. | G22: Further tuning of the control systems. | H22: 0.1 Score CCS 4.1 Q1 | I22: Turbine trip
A23: 2025-04-15 | B23: Stream 2 SO2. Average of 221.1mg/Nm3 over the half hour period. | D23: Stream 2 tripped on high superheated steam temperature. The Metering Bin screws were restarted and it was not noted that the current SO2 readings were high. The result was a high SO2 reading which exceeded the half hour maximum limit. All subsequent half hour readings were compliant. | G23: Lime dosing was increased to ensure the daily average did not exceed. | H23: Q2 | I23: Stream trip
A24: 2025-06-27 | B24: Stream 3 CO. Average of 104mg/Nm3 over the half hour period. | D24: Stream 3 CO. Average of 104mg/Nm3 over the half hour period. | G24: Stream taken off fuel and Combustion Air Fan dampers controlled manually to get the CO under control. | H24: 0.2 score CCS 4.3 Q2 | I24: Damper control loop
A25: 2025-09-05 | B25: Stream 1 NOx. Daily average of 165.7 mg/Nm3. | D25: Daily average of 165.7 mg/Nm3 was recorded against a limit of 120 mg/Nm3, however, insufficient half-hourly averages were available to create a valid daily value for compliance purposes. One category C4 non-compliances have been recorded against permit condition 3.2.1. This reflects that the process contribution was less than 10% of the prevailing air quality standard for Sulphur dioxide exceedance on this date. | G25: N/A | H25: 0.1 score CCS 4.4 Q3 | I25: High NOx readings when going on waste.
A26: 2025-10-01 | B26: Stream 3 SO2. 315.5mg/Nm3 within the 30 minute maximum. | D26: Stream 3 breached on SO2 30 min avg at 17:29 01/10/25 this was during shutting down of the stream after a plant failure with burners in service. The fuel feed was briefly re-started in the action of emptying the Metering Bin. A couple burners dropped out and the CEMS equipment recorded a CO spike and soon after the SO2 spiked to 780+. CO poisoning of the CEMS may have also contributed to the reading. | G26: Stopped the feed when the large spike in SO2 occurred. Checked that lime dosing and rebox were in service and noted that the lime dosing screw had just tripped. Stream was being shut down due to a plant failure. | H26: 0.1 score CCS 4.5 Q4 | I26: Briefly re-starting waste feed whilst shutting down.
A29: *If the Environment Agency (EA) has given a Compliance Classification Scheme (CCS) score due to a permit non-compliance it should be entered here (CCS4 = No impact; CCS3 = Minor impact; CCS2 = Significant impact; CCS1 = Major impact). If the EA has not yet assessed a non-compliance which you have notified to them, these columns should be left blank. Enter N/A if no score was given for the root cause.
A31: Summary of any complaints received and actions to taken to resolve them.
A32: Date | B32: Summary of complaint [including Line/Reference] | E32: Reason (including whether substantiated by the operator or the EA) | H32: Measures taken to prevent reoccurrence
A33: 2025-02-19 | B33: Offtake vehicle parked on the highway outside site awaiting the gatehouse opening hours. | E33: Offtake vehicle parked on the highway outside site awaiting the gatehouse opening hours. | H33: Gatehouse opening hours have been extended and note sent out to all delivery and offtake providers reminding them of our permitted hours on site.
A34: 2025-07-28 | B34: Reports of odor coming from site, reported by resident at Dracon Village. Complaint referenced the last couple of months, | E34: Complaint was received by Vital Energi and was shared with the site local EA representative. | H34: External company was contacted to perform an odour survey. The survey was compiled in November and shared with the Environment Agency.

Sheet Improvements
A1: =+'Cover Page'!$B$29 -> Annual Performance Report 2025 | E1: =+'Cover Page'!$B$33 -> Issue Date:
A3: Summary of Plant Improvements
A5: Summary of any efficiency improvements that have been completed within the year.
A6: There has been modification to our abatement system (lime) over the year to improve our dosing efficiency. A new rotary valve arrangement was fitted to the dosing system to alleviate issues with tramp air entering the system. The lime dosing system has also been automated with further tuning administered over the year. The dosing system now allows the active targeting of either HCL or SO2, dependent on which is furthest from setpoint.
A16: Summary of any permit improvement conditions that have been completed within the year and the resulting environmental benefits.
A17: IC1: The Operator shall submit a written report to the Environment Agency on the implementation of its Environmental Management System (EMS) and the progress made in the certification of the system by an external body or if appropriate submit a schedule by which the EMS will be certified. (Completed) IC2: The operator shall submit a written proposal to the Environmental Agency to carry out tests to determine the size distribution of the particulate matter in the exhaust gas emissions to air from emission points A1, A2, and A3 identifying the fractions within the PM10, and PM2.5 ranges. On receipt of written approval from the Environment Agency to the proposal and the timeline, the operator shall carry out the tests and submit to the Environment Agency a report of the results. (Completed) IC3: The Operator shall submit a written report to the Environment Agency on the commissioning of the installation. The report shall summarise the environmental performance of the plant as installed against the design parameters set out in the Application. The report shall also include a review of the performance of the facility against the conditions of this permit and details of procedures developed during commissioning for achieving and demonstrating compliance with permit conditions and confirm that the Environmental Management System (EMS) has been updated accordingly. (Completed) IC5: The Operator shall submit a written report to the Environment Agency describing the performance and optimisation of: • The Selective Non Catalytic Reduction (SNCR) system and combustion settings to minimise oxides of nitrogen (NOx). The report shall include an assessment of the level of NOx, N2O and NH3 emissions that can be achieved under optimum operating conditions and an assessment of the benefits of using catalytic bag filters to further reduce NOx emissions. • The lime injection system for minimisation of acid gas emissions. • The carbon injection system for minimisation of dioxin and heavy metal emissions. • The bag filter system for minimisation of particulate matter. (Completed) IC7:The Operator shall submit a written summary report to the Environment Agency to confirm that the performance of Continuous Emission Monitors for parameters as specified in Table S3.1 and Table S3.1(a) complies with the requirements of BS EN 14181, specifically the requirements of QAL1, QAL2 and QAL3. The report shall include the results of calibration and verification testing, (Completed) IC8: During commissioning, the operator shall carry out tests to demonstrate whether the furnace combustion air will ensure that negative pressure is achieved throughout the reception / tipping hall. The tests shall demonstrate whether air is pulled through the reception / tipping hall and bunker area and into the furnace with dead spots minimised. The operator shall submit a report to the Environment Agency, for approval, summarising the findings along with any proposed improvements if required. (Completed) IC9: The operator shall carry out a programme of dioxin and dioxin like PCB monitoring over a period and frequency agreed with the Environment Agency. The operator shall submit a report to the Environment Agency with an analysis of whether dioxin emissions can be considered to be stable. (Completed) IC10: The operator shall carry out a programme of mercury monitoring over a period and frequency agreed with the Environment Agency. The operator shall submit a report to the Environment Agency with an analysis of whether the waste feed to the plant can be proven to have a low and stable mercury content. (Completed)
A27: Summary of any changes to the plant or operating techniques which required a variation to the permit and a summary of the resulting environmental impact.
A28: None
A38: Summary of any other improvements made to the plant or planned to be made and a summary of the resulting environmental benefits.
A39: None

Sheet Public Liasion
A1: =+'Cover Page'!$B$29 -> Annual Performance Report 2025 | E1: =+'Cover Page'!$B$33 -> Issue Date:
A3: Details of Public & Stakeholder Liaison
A5: Summary of events held during the reporting year.
A6: Date | C6: Description
C7: None
A16: List of events planned for next year
A17: Date | C17: Description
A18: TBC | C18: Community Liason
A29: If you wish to be involved in the public liaison programme, please contact _________________Drakelowefw@vitalenergi.co.uk

Sheet CO2 N20
A1: Annual Peformance Report 2025 | C1: Drakelow Energy Generation Facility
A3: Carbon dioxide emissions and biogenic content of waste inputs | F3: Notes:
A5: Carbon dioxide emissions (all types of plant)
B6: Annual mass of carbon dioxide released | C6: tonnes | D6: 180,213T
B7: Annual mass of carbon dioxide released per tonne of waste burned | C7: t CO2 / t waste | D7: =180213/129467 -> 1.391960886
B8: Annual mass of carbon dioxide released per MWh of energy exported | C8: t CO2 / MWh export | D8: =180213/85330 -> 2.111953592
B9: Description of how annual carbon dioxide mass emission has been calculated. See Note 1 | C9: Corrected and calibrated CEMS data. | F9: Note 1: All permits require operators to continuously monitor CO2 to EN14181 and flow to BS EN 16911-2 (unless otherwise agreed in writing). Operators must therefore use the results from these instruments to calculate their annual CO2 emissions. Where an operator does not have a flow meter calibrated to BS EN 16911-2, the averaged flow measurement from that year's periodic monitoring can be used instead. If the plant does not have calibrated CO2 CEMS, a suitably justified emissions factor can be used.
A10: Nitrous oxide emissions (only plants which use ammonia or urea to abate NOx emissions)
B11: Annual mass emissions of nitrous oxide | C11: tonnes N2O | D11: 512T
B12: Description of how annual nitrous oxide mass emission has been calculated See Note 2 | C12: Corrected and calibrated CEMS data. | F12: Note 2: All permits require operators to continuously monitor N2O to EN14181 and flow to BS EN 16911-2, unless otherwise agreed in writing. Operators must therefore use the results from these instruments to calculate their annual N2O emissions. Where an operator does not have a flow meter calibrated to BS EN 16911-2, the averaged flow measurement from periodic monitoring can be used instead. If the plant does not have calibrated N2O CEMS, data from periodic monitoring or a suitably justified emissions factor can be used instead.
A13: Total annual carbon dioxide + nitrous oxide emissions. See Note 3. | C13: tonnes CO2e | D13: =180213+135680 -> 315893 | F13: Note 3: Total annual carbon dioxide and nitrous oxide emissions reported as carbon dioxide equivalent where 1 tonne nitrous oxide is equivalent to 265 tonnes carbon dioxide.
A14: Biogenic CO2 emissions (See Note 4) | F14: Note 4: Only plants combusting residual municipal waste, refuse derived fuel or solid recovered fuel need complete this section.
B15: Percentage of total carbon dioxide emissions arising from biogenic waste | C15: %
B16: No. of measurements undertaken | C16: Number
B17: Description of how percentage biogenic carbon dioxide emissions have been measured or calculated. See Note 5 | C17: N/A | F17: Note 5: The results from C14 sampling should be used if this is carried out at the plant (either via an installed sampler or from spot samples). Otherwise, as an approximation (and in lieu of any more accurate metrics which may be developed in future), the measured or estimated biogenic fraction by net calorific value (see Note 6) can be assumed to be the same as the biogenic CO2 fraction of the total CO2 emissions from the plant.
A18: Biogenic fraction of waste feedstock (See Note 4)
B19: Yearly average biogenic percentage of the waste by net calorific value (NCV) | C19: %
B20: Description of how biogenic percentage (by NCV) has been calculated or estimated. See Note 6 | C20: N/A | F20: Note 6: If C14 sampling is carried out at the plant, the methodology set out in the embedded document entitled "Renewable Energy Association Energy Content of Fuels - Description of Method" embedded below can be used to calculate the biogenic percentage by net calorific value. Otherwise, data from waste sampling or BIOMA software can be used; or if none of these are available, an estimated figure with justification or a figure assumed on the basis of up-to-date industry data can be used.
B21: Yearly average biogenic percentage of the waste by mass | C21: %
B22: If waste sampling undertaken, no. of samples used to ascertain average biogenic percentages above | C22: Number
B23: Description of how biogenic percentage (by mass) has been calculated or estimated. See Note 7 | C23: N/A | F23: Note 7: Where available, data from waste sampling should be used; otherwise, an estimated figure with justification can be used, or a figure assumed on the basis of up-to-date industry data.
B25: Comments:
B26: Carbon 14 instruments fitted but not currently operational.

Sheet Residues
A1: Annual Performance Report 2025 | E1: Drakelow Energy Generation Facility
A3: Summary of Residue Handling for the reporting year
A5: In January 2025 several ‘offtakers’ were trialled for Incinerator Bottom Ash (IBA) including Pro Group Construction Ltd, Johnson Aggregates & Recycling Ltd and Fortis IBA Ltd. Since 3rd February 2025 IBA has solely been disposed of by Fortis IBA Ltd at their A303 Enviropark site in Barton Stacey, Andover. This facility is permitted to accept waste classification code 19 01 12 (bottom ash and slag other than those mentioned in 19 01 11) under permit EPR/FB3085GN issued by the Environment Agency. Vital Energi Drakelow has followed the Environmental Services Association (ESA) protocol for sampling and testing incinerator bottom ash to assess its hazard status. No exceedances of the HP4, HP8, HP7 hazardous thresholds were reported for the samples which were obtained and analysed in 2025 (24 sample rolling assessment period). Equally, there were no exceedances of HP14 (indicative) (municipal waste, moving grate technology and 2021 specification factors applied). All IBA is quarantined and stored in batches at Fortis until the hazard sample results for each batch are received. The off-site IBA facility processes the ash to produce Incinerator Bottom Ash Aggregate (IBAA) and to recover ferrous and non-ferrous metal. Under Grate Ash (UGA) and Boiler Fly Ash (BFA) are both handled by Acumen Waste Services Ltd and disposed of by Augean South Ltd at their East Northants Resource Management Facility (ENRMF) in King’s Cliffe, Peterborough. This facility is permitted to accept waste classification code 19 01 11 (bottom ash and slag containing hazardous substances) and waste classification code 19 01 15 (boiler dust containing hazardous substances) under permit EPR/TP3430GW issued by the Environment Agency. ENRMF is a specialised hazardous and non-hazardous waste landfill site. Air Pollution Control residues (APCr) are handled by Acumen Waste Services Ltd and disposed of by Castle Waste Services Ltd at their Waste Treatment and Transfer Facility in Ilkeston, Derbyshire. This facility is permitted to accept waste classification code 19 01 07 (solid wastes from gas treatment) under permit EPR/AP3337SJ issued by the Environment Agency. APCr is treated / neutralised to produce a non-hazardous solid material which is used in land reclamation projects. Alternatively, for disposal to landfill, ash is also treated to a non-hazardous state. | K5: Include in here a summary of residue handling regimes and destinations
A28: Residue Quality Monitoring Requirements
A30: Summary of monitoring undertaken and compliance
A31: Samples of IBA are taken twice a month, with APCR sampled once a month for permit compliance requirements.
A33: The sample regime is in place so that samples can be analysed each month to assess the hazard status in accordance with the ESA protocol.
A35: No hazardous results were received for IBA in 2025
A38: Commentary on any specific events
A39: Date & Event | C39: Description
C40: N/A
A52: Residue Quality Monitoring Results
A53: Parameter (unit) | C53: Limit* | D53: Normal Operation
D54: Bottom ash | F54: APC Residues
A55: Loss on Ignition (average %) | C55: <5% | D55: 1.96
A56: Total Organic Carbon (average %) | C56: <3% | D56: 0.97
A57: No. of Assessments Undertaken | C57: --- | D57: 24 | F57: 12
A58: No. of Hazardous Results | C58: --- | D58: 0
A59: * The permit will specify a limit of either 5% loss on ignition or 3% total organic carbon. If both are measured anyway, please enter the results here, even where the limit does not apply.
A61: Comments :
A62: N/A

Sheet Water
A1: Annual Performance Report 2025 | E1: Drakelow Energy Generation Facility
A3: Emissions to Water
A5: Summary of monitoring undertaken and compliance
A6: Boiler blowdown water, and turbine drains are discharged to the effluent treatment plant. The pH is monitored and discharged if between 6-9pH. If out of specification the effluent is treated and recirculated until within tolerance before being discharged to the drainage system.
A8: Monitoring of water discharged from site is performed on behalf of the site owners by an external company (Silkstone). The three compliance tests the company test for are PH, Suspended Solids, and Visible oil and grease. All results are within the compliance limits.
A13: Commentary on any specific events
A14: Date & Event | C14: Description
A15: 17/06/2025 | C15: Effluent PH probes calibrated by Environgen as per service report 34807
A22: Emissions to Water / Sewer
A23: Parameter | D23: Monitoring Frequency | F23: Limit | G23: Target | H23: Max. | I23: Average
A24: pH | D24: When releasing effluent | F24: pH 6 - 9 | G24: pH 6 - 9 | H24: Probe 2 : 8.81pH Probe 3 : 8.99pH | I24: Probe 2 : 7.480pH Probe 3 : 7.496pH
A25: Temperature | D25: Prior to the release of water from clean water tanks | F25: No limit set | H25: Probe 2 : 24.3C Probe 3 : 24.4C | I25: Probe 2 : 14.73C Probe 3 : 15.41C

Sheet Air (periodic)
A1: Annual Performance Report 2025 | E1: Drakelow Energy Generation Facility
A3: Emissions to Air (periodically monitored)
A5: Summary of monitoring undertaken, standards used and compliance | K5: Notes:
A6: Monitoring data taken from 4X quarterly 'stack emissions monitoring reports'. Q1 testing performed by Envirocare. Q2, Q3, Q4 testing performed by CuraTerrae. | K6: Template may require adjustment for any bespoke monitoring requirements of permit - please also check that all default ELV values, reference periods and the stated oxygen reference value match those for your plant, and edit if necessary
A9: Results of emissions to air that are periodically monitored - oxygen reference 11%
A10: Substance | C10: Ref. Period | D10: Emission Limit Value | F10: Average | K10: User to add additional tables as necessary, depending on whether quarterly or bi-annual reporting is required for the compliance year
F11: A1 | G11: A2 | H11: A3 | I11: A4 | J11: A5
A12: Hydrogen fluoride | C12: 1 hr | D12: 1.5 mg/m3 | F12: 0.17 | G12: 0.12 | H12: 0.06 | I12: N/A | J12: N/A
A13: Cd and Tl and their compounds | C13: 0.5-8hrs | D13: 0.03 mg/m3 | F13: 0.001 | G13: 0.001 | H13: 0.002 | I13: N/A | J13: N/A
A14: Hg and its compounds | C14: 0.5-8hrs | D14: 0.03 mg/m3 | F14: 0.0006325 | G14: 0.0011525 | H14: 0.000815 | I14: N/A | J14: N/A
A15: Sb, As, Pb, Cr, Co, Cu, Mn, Ni, V and their compounds | C15: 0.5-8hrs | D15: 0.45 mg/m3 | F15: 0.025 | G15: 0.042 | H15: 0.022 | I15: N/A | J15: N/A
A16: Dioxins & Furans (I-TEQ) | C16: 6-8hrs | D16: 0.04 ng/m3 | F16: 0.0023 | G16: 0.0078 | H16: 0.003 | I16: N/A | J16: N/A
A17: PCBs (WHO-TEQ Humans / Mammals) | C17: 6-8hrs | D17: None set ng/m3 | F17: 0.00059 | G17: 0.00791 | H17: 0.0016 | I17: N/A | J17: N/A
A18: PCBs (WHO-TEQ Fish) | C18: 6-8hrs | D18: None set ng/m3 | F18: 3e-05 | G18: 0.00015 | H18: 8.3e-05 | I18: N/A | J18: N/A
A19: PCBs (WHO-TEQ Birds) | C19: 6-8hrs | D19: None set ng/m3 | F19: 0.00185 | G19: 0.00478 | H19: 0.00454 | I19: N/A | J19: N/A
A20: Dioxins & Furans (WHO-TEQ Humans / Mammals) | C20: 6-8hrs | D20: None set ng/m3 | F20: 0.002675 | G20: 0.008125 | H20: 0.003015 | I20: N/A | J20: N/A
A21: Dioxins & Furans (WHO-TEQ Fish) | C21: 6-8hrs | D21: None set ng/m3 | F21: 0.00275 | G21: 0.00905 | H21: 0.00331 | I21: N/A | J21: N/A
A22: Dioxins & Furans (WHO-TEQ Birds) | C22: 6-8hrs | D22: None set ng/m3 | F22: 0.004475 | G22: 0.01312 | H22: 0.00609 | I22: N/A | J22: N/A
A23: Anthanthrene | C23: 6-8hrs | D23: None set µg/m3 | F23: 0.00135 | G23: 0.00132 | H23: 0.0014 | I23: N/A | J23: N/A
A24: Benzo(a)anthracene | C24: 6-8hrs | D24: None set µg/m3 | F24: 0.00135 | G24: 0.001325 | H24: 0.00415 | I24: N/A | J24: N/A
A25: Benzo(a)pyrene | C25: 6-8hrs | D25: None set µg/m3 | F25: 0.00135 | G25: 0.0013 | H25: 0.0014 | I25: N/A | J25: N/A
A26: Benzo(b)fluoranthene | C26: 6-8hrs | D26: None set µg/m3 | F26: 0.0016 | G26: 0.002125 | H26: 0.007675 | I26: N/A | J26: N/A
A27: Benzo(b)naptho(2,1-d) thiophene | C27: 6-8hrs | D27: None set µg/m3 | F27: 0.00135 | G27: 0.0013. | H27: 0.0019 | I27: N/A | J27: N/A
A28: Benzo(c)phenanthrene | C28: 6-8hrs | D28: None set µg/m3 | F28: 0.00135 | G28: 0.0013 | H28: 0.00315 | I28: N/A | J28: N/A
A29: Benzo(ghi)perylene | C29: 6-8hrs | D29: None set µg/m3 | F29: 0.0034 | G29: 0.003 | H29: 0.0019 | I29: N/A | J29: N/A
A30: Benzo(k)fluoranthene | C30: 6-8hrs | D30: None set µg/m3 | F30: 0.00135 | G30: 0.0013 | H30: 0.0039 | I30: N/A | J30: N/A
A31: Cholanthrene | C31: 6-8hrs | D31: None set µg/m3 | F31: 0.00135 | G31: 0.0013 | H31: 0.0014 | I31: N/A | J31: N/A
A32: Chrysene | C32: 6-8hrs | D32: None set µg/m3 | F32: 0.00135 | G32: 0.00242 | H32: 0.0122 | I32: N/A | J32: N/A
A33: Cyclopenta(cd)pyrene | C33: 6-8hrs | D33: None set µg/m3 | F33: 0.00135 | G33: 0.0052 | H33: 0.0014 | I33: N/A | J33: N/A
A34: Dibenzo(ai)pyrene | C34: 6-8hrs | D34: None set µg/m3 | F34: 0.00135 | G34: 0.0013 | H34: 0.0014 | I34: N/A | J34: N/A
A35: Dibenzo(ah)anthracene | C35: 6-8hrs | D35: None set µg/m3 | F35: 0.00135 | G35: 0.0013 | H35: 0.0014 | I35: N/A | J35: N/A
A36: Fluoranthene | C36: 6-8hrs | D36: None set µg/m3 | F36: 0.01475 | G36: 0.0141 | H36: 0.0616 | I36: N/A | J36: N/A
A37: Indeno(123-cd) pyrene | C37: 6-8hrs | D37: None set µg/m3 | F37: 0.00135 | G37: 0.0013 | H37: 0.0014 | I37: N/A | J37: N/A
A38: Naphthalene | C38: 6-8hrs | D38: None set µg/m3 | F38: 2.92875 | G38: 2.927 | H38: 3.1825 | I38: N/A | J38: N/A
A39: Comments :
A40: N/A

Sheet Air (CEMS)
A1: Annual Performance Report 2025 | I1: Drakelow Energy Generation Facility
A3: Emissions to Air (continously monitored)
N4: Notes:
A5: Summary of monitoring undertaken, standards used and compliance | N5: Template may require adjustment for any bespoke monitoring requirements of permit
A6: CEMS enabled with Envirocare software. System has redundency measure via the second analyser. | N6: Please check that all default ELV values, reference periods and the stated oxygen reference value match those for your plant, and edit if necessary
N7: Report to 1 decimal place
A11: Results of emissions to air that are continuously monitored (maximum and average values for each line) - oxygen reference 6%
A12: Substance | B12: Reference Period | C12: Emission Limit Value | D12: A1 | F12: A2 | H12: A3 | J12: A4 | L12: A5
D13: Max. | E13: Avg. | F13: Max. | G13: Avg. | H13: Max. | I13: Avg. | J13: Max. | K13: Avg. | L13: Max. | M13: Avg.
A14: Oxides of nitrogen | B14: Daily mean | C14: 120 mg/m3 | D14: 165.7 | E14: 87.65 | F14: 122.8 | G14: 84.1 | H14: 126.8 | I14: 81.5 | J14: N/A | K14: N/A | L14: N/A | M14: N/A
B15: ½ hourly mean* | C15: 400 mg/m3 * | D15: 408.4 | E15: 86.6 | F15: 317.5 | G15: 83.75 | H15: 314.9 | I15: 81 | J15: N/A | K15: N/A | L15: N/A | M15: N/A
A16: Particulates | B16: Daily mean | C16: 5 mg/m3 | D16: 24.6 | E16: 0.3 | F16: 3 | G16: 0.2 | H16: 0.9 | I16: 0.1 | J16: N/A | K16: N/A | L16: N/A | M16: N/A
B17: ½ hourly mean* | C17: 30 mg/m3 * | D17: 44.5 | E17: 0.3 | F17: 7.5 | G17: 0.3 | H17: 2.1 | I17: 0.1 | J17: N/A | K17: N/A | L17: N/A | M17: N/A
A18: Total Organic Carbon | B18: Daily mean | C18: 10 mg/m3 | D18: 8.2 | E18: 0.1 | F18: 1.9 | G18: 0.3 | H18: 1.7 | I18: 0.2 | J18: N/A | K18: N/A | L18: N/A | M18: N/A
B19: ½ hourly mean* | C19: 20 mg/m3 * | D19: 58.7 | E19: 0.1 | F19: 9.7 | G19: 0.3 | H19: 14.2 | I19: 0.2 | J19: N/A | K19: N/A | L19: N/A | M19: N/A
A20: Hydrogen chloride | B20: Daily mean | C20: 6 mg/m3 | D20: 7.2 | E20: 3.3 | F20: 5.8 | G20: 3.8 | H20: 6.5 | I20: 3.4 | J20: N/A | K20: N/A | L20: N/A | M20: N/A
B21: ½ hourly mean* | C21: 60 mg/m3 * | D21: 42.8 | E21: 3.3 | F21: 46.7 | G21: 3.8 | H21: 99.5 | I21: 3.4 | J21: N/A | K21: N/A | L21: N/A | M21: N/A
A22: Sulphur dioxide | B22: Daily mean | C22: 30 mg/m3 | D22: 88.2 | E22: 20.2 | F22: 30 | G22: 19.2 | H22: 143.6 | I22: 23.5 | J22: N/A | K22: N/A | L22: N/A | M22: N/A
B23: ½ hourly mean* | C23: 200 mg/m3 * | D23: 1757.7 | E23: 20.5 | F23: 221.1 | G23: 19.5 | H23: 5931.7 | I23: 23.8 | J23: N/A | K23: N/A | L23: N/A | M23: N/A
A24: Carbon monoxide | B24: Daily mean | C24: 50 mg/m3 | D24: 12.6 | E24: 0.6 | F24: 7 | G24: 2 | H24: 6.4 | I24: 0.4 | J24: N/A | K24: N/A | L24: N/A | M24: N/A
B25: ½ hourly mean* | C25: 100 mg/m3 * | D25: 73.9 | E25: 0.6 | F25: 92.9 | G25: 2 | H25: 104.4 | I25: 0.4 | J25: N/A | K25: N/A | L25: N/A | M25: N/A
B26: 95%ile 10-min avg* | C26: 225 mg/m3 * | D26: N/A | E26: N/A | F26: N/A | G26: N/A | H26: N/A | I26: N/A | J26: N/A | K26: N/A | L26: N/A | M26: N/A
A27: Ammonia | B27: Daily mean | C27: 10 mg/m3 | D27: 8.9 | E27: 1.1 | F27: 10.5 | G27: 1.2 | H27: 12.7 | I27: 1.4 | J27: N/A | K27: N/A | L27: N/A | M27: N/A
A28: * = delete if your plant does not have these limits
A29: Comments :
A30: A4 and A5 not applicable. 10 minute average on CO not applicable.

Sheet HCl
A1: =+'Cover Page'!$B$29 -> Annual Performance Report 2025 | E1: =+'Cover Page'!$B$33 -> Issue Date:
A3: Monitoring of Hydrogen Chloride emissions | D3: Whole Installation | G3: See Notes in Cell Q3 | J3: =+A3 -> Monitoring of Hydrogen Chloride emissions | N3: Per Combustion Line | Q3: Notes:
Q4: User to add logic to complete Whole installation, Table A5:G18. From the data in Per Combustion Line, Table J6:O79, subject to No. of lines installed
A5: =+'Cover Page'!C39 -> 2025 | B5: 1/2 Hourly Reference Periods | E5: Daily Reference Periods
A6: mg/Nm3 | B6: 1/2 hourly HCl ELV | C6: Monthly mean of half-hourly averages | D6: Highest half- hourly average | E6: Daily HCl ELV | F6: Monthly mean of daily averages | G6: Highest daily average | J6: =+A5 -> 2025 | K6: mg/Nm3 | L6: Monthly mean of half-hourly averages | M6: Highest half- hourly average | N6: Monthly mean of daily averages | O6: Highest daily average
A7: Jan | B7: 60 | C7: 2.7 | D7: 33 | E7: 6 | F7: 2.6 | G7: 5.7 | J7: A1 | K7: Jan | L7: 2.1 | M7: 33 | N7: 2 | O7: 5.7
A8: Feb | B8: 60 | C8: 3.6 | D8: 99.5 | E8: 6 | F8: 3.6 | G8: 7.2 | K8: Feb | L8: 3.6 | M8: 42.8 | N8: 3.5 | O8: 7.2
A9: Mar | B9: 60 | C9: 2.7 | D9: 43.7 | E9: 6 | F9: 2.6 | G9: 5.3 | K9: Mar | L9: 2 | M9: 6.7 | N9: 2 | O9: 3.9 | Q9: Whole Installation table A5:G18:
A10: Apr | B10: 60 | C10: 1.7 | D10: 8.4 | E10: 6 | F10: 1.7 | G10: 4.1 | K10: Apr | L10: 1.3 | M10: 5 | N10: 1.3 | O10: 2.8 | Q10: Mean: for 1/2 hourly and daily periods calculate mean of values across all operational combustion lines for the month
A11: May | B11: 60 | C11: 2.2 | D11: 43.8 | E11: 6 | F11: 2.2 | G11: 5.2 | K11: May | L11: 1.8 | M11: 7.9 | N11: 1.8 | O11: 4.4
A12: Jun | B12: 60 | C12: 4.2 | D12: 37.3 | E12: 6 | F12: 4.2 | G12: 5.7 | K12: Jun | L12: 4 | M12: 37.3 | N12: 4 | O12: 5.7
A13: Jul | B13: 60 | C13: 2.8 | D13: 28.5 | E13: 6 | F13: 2.6 | G13: 5.4 | K13: Jul | L13: 3 | M13: 8.3 | N13: 2.6 | O13: 4.4 | Q13: Maximum: for 1/2 hourly and daily periods use the highest value across all operational combustion lines for the month
A14: Aug | B14: 60 | C14: 3.7 | D14: 20.6 | E14: 6 | F14: 3.5 | G14: 5 | K14: Aug | L14: 4 | M14: 8.3 | N14: 3.9 | O14: 5
A15: Sep | B15: 60 | C15: 4.3 | D15: 29.3 | E15: 6 | F15: 4.2 | G15: 5.3 | K15: Sep | L15: 4.4 | M15: 29.3 | N15: 4.2 | O15: 5.3
A16: Oct | B16: 60 | C16: 5 | D16: 28.9 | E16: 6 | F16: 5.1 | G16: 6.5 | K16: Oct | L16: 4.8 | M16: 13.2 | N16: 4.8 | O16: 5.5
A17: Nov | B17: 60 | C17: 4.5 | D17: 11.7 | E17: 6 | F17: 4.5 | G17: 5.5 | K17: Nov | L17: 4.4 | M17: 10.6 | N17: 4.4 | O17: 5.5
A18: Dec | B18: 60 | C18: 5.2 | D18: 32 | E18: 6 | F18: 5.1 | G18: 6.2 | K18: Dec | L18: 5.2 | M18: 13.8 | N18: 5.1 | O18: 5.4
K19: Annual | L19: =AVERAGE(L7:L18) -> 3.383333333 | M19: =MAX(M7:M18) -> 42.8 | N19: =AVERAGE(N7:N18) -> 3.3 | O19: =MAX(O7:O18) -> 7.2
J21: =+A5 -> 2025 | K21: mg/Nm3 | L21: Monthly mean of half-hourly averages | M21: Highest half- hourly average | N21: Monthly mean of daily averages | O21: Highest daily average
J22: A2 | K22: Jan | L22: 3 | M22: 12.9 | N22: 3 | O22: 5.5
K23: Feb | L23: 3.8 | M23: 46.7 | N23: 3.8 | O23: 5.7
K24: Mar | L24: 3 | M24: 24 | N24: 2.9 | O24: 5.3
K25: Apr | L25: 2.1 | M25: 8.1 | N25: 2.1 | O25: 3.9
K26: May | L26: 3.3 | M26: 43.8 | N26: 3.3 | O26: 5.2
K27: Jun | L27: 4.6 | M27: 27.5 | N27: 4.6 | O27: 5.4
K28: Jul | L28: 2.8 | M28: 7.9 | N28: 2.8 | O28: 4.6
K29: Aug | L29: 3.7 | M29: 11.9 | N29: 3.6 | O29: 5
K30: Sep | L30: 4.7 | M30: 9.6 | N30: 4.7 | O30: 5
K31: Oct | L31: 5.2 | M31: 28.9 | N31: 5.2 | O31: 5.8
K32: Nov | L32: 5 | M32: 11.7 | N32: 5 | O32: 5.5
K33: Dec | L33: 5.2 | M33: 10 | N33: 5.1 | O33: 5.5
K34: Annual | L34: =AVERAGE(L22:L33) -> 3.866666667 | M34: =MAX(M22:M33) -> 46.7 | N34: =AVERAGE(N22:N33) -> 3.841666667 | O34: =MAX(O22:O33) -> 5.8
J36: =+A5 -> 2025 | K36: mg/Nm3 | L36: Monthly mean of half-hourly averages | M36: Highest half- hourly average | N36: Monthly mean of daily averages | O36: Highest daily average
J37: A3 | K37: Jan | L37: 3 | M37: 14.4 | N37: 2.8 | O37: 5.4
K38: Feb | L38: 3.6 | M38: 99.5 | N38: 3.5 | O38: 5.8
K39: Mar | L39: 3.1 | M39: 43.7 | N39: 3.1 | O39: 5.1
K40: Apr | L40: 1.7 | M40: 8.4 | N40: 1.7 | O40: 4.1
K41: May | L41: 1.5 | M41: 7.4 | N41: 1.5 | O41: 3.1
K42: Jun | L42: 4 | M42: 17.5 | N42: 4 | O42: 5.1
K43: Jul | L43: 2.7 | M43: 28.5 | N43: 2.6 | O43: 5.4
K44: Aug | L44: 3.4 | M44: 20.6 | N44: 3.2 | O44: 4.6
K45: Sep | L45: 4 | M45: 8.3 | N45: 3.9 | O45: 5
K46: Oct | L46: 5.2 | M46: 17.4 | N46: 5.2 | O46: 6.5
K47: Nov | L47: 4.3 | M47: 10.6 | N47: 4.2 | O47: 5.4
A48: Comments : | K48: Dec | L48: 5.2 | M48: 32 | N48: 5.2 | O48: 6.2
K49: Annual | L49: =AVERAGE(L37:L48) -> 3.475 | M49: =MAX(M37:M48) -> 99.5 | N49: =AVERAGE(N37:N48) -> 3.408333333 | O49: =MAX(O37:O48) -> 6.5
J51: =+A5 -> 2025 | K51: mg/Nm3 | L51: Monthly mean of half-hourly averages | M51: Highest half- hourly average | N51: Monthly mean of daily averages | O51: Highest daily average
J52: A4 | K52: Jan | L52: N/A | M52: N/A | N52: N/A | O52: N/A
K53: Feb
K54: Mar
K55: Apr
K56: May
K57: Jun
K58: Jul
K59: Aug
K60: Sep
K61: Oct
K62: Nov
K63: Dec
K64: Annual | L64: =AVERAGE(L52:L63) ->  | M64: =MAX(M52:M63) -> 0 | N64: =AVERAGE(N52:N63) ->  | O64: =MAX(O52:O63) -> 0
J66: =+A5 -> 2025 | K66: mg/Nm3 | L66: Monthly mean of half-hourly averages | M66: Highest half- hourly average | N66: Monthly mean of daily averages | O66: Highest daily average
J67: A5 | K67: Jan | L67: N/A | M67: N/A | N67: N/A | O67: N/A
K68: Feb
K69: Mar
K70: Apr
K71: May
K72: Jun
K73: Jul
K74: Aug
K75: Sep
K76: Oct
K77: Nov
K78: Dec
K79: Annual | L79: =AVERAGE(L67:L78) ->  | M79: =MAX(M67:M78) -> 0 | N79: =AVERAGE(N67:N78) ->  | O79: =MAX(O67:O78) -> 0

Sheet SO2
A1: =+'Cover Page'!$B$29 -> Annual Performance Report 2025 | E1: =+'Cover Page'!$B$33 -> Issue Date:
A3: Monitoring of Sulphur dioxide emissions | D3: Whole Installation | G3: See Notes in Cell Q3 | J3: =+A3 -> Monitoring of Sulphur dioxide emissions | N3: Per Combustion Line | Q3: Notes:
Q4: User to add logic to complete Whole installation, Table A5:G18. From the data in Per Combustion Line, Table J6:O79, subject to No. of lines installed
A5: =+'Cover Page'!C39 -> 2025 | B5: 1/2 Hourly Reference Periods | E5: Daily Reference Periods
A6: mg/Nm3 | B6: 1/2 hourly SO2 ELV | C6: Monthly mean of half-hourly averages | D6: Highest half- hourly average | E6: Daily SO2 ELV | F6: Monthly mean of daily averages | G6: Highest daily average | J6: =+A5 -> 2025 | K6: mg/Nm3 | L6: Monthly mean of half-hourly averages | M6: Highest half- hourly average | N6: Monthly mean of daily averages | O6: Highest daily average
A7: Jan | B7: 200 | C7: 16.2 | D7: 956.8 | E7: 30 | F7: 15.9 | G7: 32.6 | J7: A1 | K7: Jan | L7: 13.9 | M7: 153.6 | N7: 13.6 | O7: 22.6
A8: Feb | B8: 200 | C8: 22.2 | D8: 160.7 | E8: 30 | F8: 21.1 | G8: 29.3 | K8: Feb | L8: 23.7 | M8: 160.7 | N8: 22 | O8: 29.3
A9: Mar | B9: 200 | C9: 28.5 | D9: 5931.7 | E9: 30 | F9: 28.4 | G9: 143.6 | K9: Mar | L9: 29.1 | M9: 1757.7 | N9: 30 | O9: 88.2 | Q9: Whole Installation table A5:G18:
A10: Apr | B10: 200 | C10: 26.7 | D10: 386.1 | E10: 30 | F10: 26.7 | G10: 38.7 | K10: Apr | L10: 27.2 | M10: 117.1 | N10: 26.7 | O10: 28.2 | Q10: Mean: for 1/2 hourly and daily periods calculate mean of values across all operational combustion lines for the month
A11: May | B11: 200 | C11: 26.3 | D11: 686.1 | E11: 30 | F11: 26.3 | G11: 40.3 | K11: May | L11: 26.8 | M11: 686.1 | N11: 26.8 | O11: 40.3
A12: Jun | B12: 200 | C12: 18.5 | D12: 158 | E12: 30 | F12: 18.6 | G12: 29.2 | K12: Jun | L12: 14.9 | M12: 82 | N12: 15.3 | O12: 27.8
A13: Jul | B13: 200 | C13: 23.2 | D13: 86.5 | E13: 30 | F13: 22.5 | G13: 29.6 | K13: Jul | L13: 21.2 | M13: 43.4 | N13: 19.5 | O13: 23.8 | Q13: Maximum: for 1/2 hourly and daily periods use the highest value across all operational combustion lines for the month
A14: Aug | B14: 200 | C14: 24.6 | D14: 106.3 | E14: 30 | F14: 24.2 | G14: 29.1 | K14: Aug | L14: 22.3 | M14: 63 | N14: 21.9 | O14: 28.2
A15: Sep | B15: 200 | C15: 19.7 | D15: 240.1 | E15: 30 | F15: 19.3 | G15: 28.1 | K15: Sep | L15: 17.6 | M15: 240.1 | N15: 17.5 | O15: 28
A16: Oct | B16: 200 | C16: 14.2 | D16: 315.5 | E16: 30 | F16: 14 | G16: 36.5 | K16: Oct | L16: 14.3 | M16: 199.1 | N16: 14.2 | O16: 24.2
A17: Nov | B17: 200 | C17: 21 | D17: 109.8 | E17: 30 | F17: 20.9 | G17: 32.1 | K17: Nov | L17: 22 | M17: 56.8 | N17: 21.8 | O17: 28.6
A18: Dec | B18: 200 | C18: 13.9 | D18: 183.7 | E18: 30 | F18: 13.7 | G18: 27.3 | K18: Dec | L18: 13.7 | M18: 45.7 | N18: 13.5 | O18: 26.5
K19: Annual | L19: =AVERAGE(L7:L18) -> 20.55833333 | M19: =MAX(M7:M18) -> 1757.7 | N19: =AVERAGE(N7:N18) -> 20.23333333 | O19: =MAX(O7:O18) -> 88.2
J21: =+A5 -> 2025 | K21: mg/Nm3 | L21: Monthly mean of half-hourly averages | M21: Highest half- hourly average | N21: Monthly mean of daily averages | O21: Highest daily average
J22: A2 | K22: Jan | L22: 12.5 | M22: 52.6 | N22: 12.6 | O22: 21.6
K23: Feb | L23: 19.7 | M23: 91.4 | N23: 19 | O23: 27
K24: Mar | L24: 26.1 | M24: 199.3 | N24: 25.2 | O24: 29.5
K25: Apr | L25: 26.5 | M25: 221.1 | N25: 26.2 | O25: 30
K26: May | L26: 24.8 | M26: 117 | N26: 24.8 | O26: 29.4
K27: Jun | L27: 18 | M27: 158 | N27: 18.1 | O27: 28.4
K28: Jul | L28: 22.6 | M28: 64.3 | N28: 22.5 | O28: 27.4
K29: Aug | L29: 26.4 | M29: 71.9 | N29: 26 | O29: 29.1
K30: Sep | L30: 15.7 | M30: 51.5 | N30: 15.6 | O30: 24.8
K31: Oct | L31: 12.6 | M31: 116.5 | N31: 12.2 | O31: 21.6
K32: Nov | L32: 16.4 | M32: 63.4 | N32: 16.3 | O32: 27.9
K33: Dec | L33: 12.7 | M33: 183.7 | N33: 12.4 | O33: 20.6
K34: Annual | L34: =AVERAGE(L22:L33) -> 19.5 | M34: =MAX(M22:M33) -> 221.1 | N34: =AVERAGE(N22:N33) -> 19.24166667 | O34: =MAX(O22:O33) -> 30
J36: =+A5 -> 2025 | K36: mg/Nm3 | L36: Monthly mean of half-hourly averages | M36: Highest half- hourly average | N36: Monthly mean of daily averages | O36: Highest daily average
J37: A3 | K37: Jan | L37: 22.2 | M37: 956.8 | N37: 21.5 | O37: 32.6
K38: Feb | L38: 23.3 | M38: 113.7 | N38: 22.3 | O38: 27.3
K39: Mar | L39: 30.4 | M39: 5931.7 | N39: 30 | O39: 143.6
K40: Apr | L40: 27.4 | M40: 386.1 | N40: 27.3 | O40: 38.7
K41: May | L41: 27.4 | M41: 70.3 | N41: 27.3 | O41: 32
K42: Jun | L42: 22.8 | M42: 139.3 | N42: 22.6 | O42: 29.2
K43: Jul | L43: 26 | M43: 86.5 | N43: 25.6 | O43: 29.6
K44: Aug | L44: 25.3 | M44: 106.3 | N44: 24.9 | O44: 28.1
K45: Sep | L45: 25.9 | M45: 52.6 | N45: 25 | O45: 28.1
K46: Oct | L46: 15.8 | M46: 315.5 | N46: 15.6 | O46: 36.5
K47: Nov | L47: 24.7 | M47: 109.8 | N47: 24.8 | O47: 32.1
A48: Comments : | K48: Dec | L48: 15.3 | M48: 95.4 | N48: 15.2 | O48: 27.3
K49: Annual | L49: =AVERAGE(L37:L48) -> 23.875 | M49: =MAX(M37:M48) -> 5931.7 | N49: =AVERAGE(N37:N48) -> 23.50833333 | O49: =MAX(O37:O48) -> 143.6
J51: =+A5 -> 2025 | K51: mg/Nm3 | L51: Monthly mean of half-hourly averages | M51: Highest half- hourly average | N51: Monthly mean of daily averages | O51: Highest daily average
J52: A4 | K52: Jan | L52: N/A | M52: N/A | N52: N/A | O52: N/A
K53: Feb
K54: Mar
K55: Apr
K56: May
K57: Jun
K58: Jul
K59: Aug
K60: Sep
K61: Oct
K62: Nov
K63: Dec
K64: Annual | L64: =AVERAGE(L52:L63) ->  | M64: =MAX(M52:M63) -> 0 | N64: =AVERAGE(N52:N63) ->  | O64: =MAX(O52:O63) -> 0
J66: =+A5 -> 2025 | K66: mg/Nm3 | L66: Monthly mean of half-hourly averages | M66: Highest half- hourly average | N66: Monthly mean of daily averages | O66: Highest daily average
J67: A5 | K67: Jan | L67: N/A | M67: N/A | N67: N/A | O67: N/A
K68: Feb
K69: Mar
K70: Apr
K71: May
K72: Jun
K73: Jul
K74: Aug
K75: Sep
K76: Oct
K77: Nov
K78: Dec
K79: Annual | L79: =AVERAGE(L67:L78) ->  | M79: =MAX(M67:M78) -> 0 | N79: =AVERAGE(N67:N78) ->  | O79: =MAX(O67:O78) -> 0

Sheet NOx
A1: =+'Cover Page'!$B$29 -> Annual Performance Report 2025 | E1: =+'Cover Page'!$B$33 -> Issue Date:
A3: Monitoring of Oxides of Nitrogen emissions | D3: Whole Installation | G3: See Notes in Cell Q3 | J3: =+A3 -> Monitoring of Oxides of Nitrogen emissions | N3: Per Combustion Line | Q3: Notes:
Q4: User to add logic to complete Whole installation, Table A5:G18. From the data in Per Combustion Line, Table J6:O79, subject to No. of lines installed
A5: =+'Cover Page'!C39 -> 2025 | B5: 1/2 Hourly Reference Periods | E5: Daily Reference Periods
A6: mg/Nm3 | B6: 1/2 hourly NOx ELV | C6: Monthly mean of half-hourly averages | D6: Highest half- hourly average | E6: Daily NOx ELV | F6: Monthly mean of daily averages | G6: Highest daily average | J6: =+A5 -> 2025 | K6: mg/Nm3 | L6: Monthly mean of half-hourly averages | M6: Highest half- hourly average | N6: Monthly mean of daily averages | O6: Highest daily average
A7: Jan | B7: 400 | C7: 75.1 | D7: 236.4 | E7: 120 | F7: 76.5 | G7: 134.7 | J7: A1 | K7: Jan | L7: 86 | M7: 236.4 | N7: 88.3 | O7: 134.7
A8: Feb | B8: 400 | C8: 66.2 | D8: 304 | E8: 120 | F8: 69.9 | G8: 152.6 | K8: Feb | L8: 66.9 | M8: 304 | N8: 73.6 | O8: 152.6
A9: Mar | B9: 400 | C9: 69.4 | D9: 267.2 | E9: 120 | F9: 69.6 | G9: 113.4 | K9: Mar | L9: 73.7 | M9: 267.2 | N9: 74.3 | O9: 113.4 | Q9: Whole Installation table A5:G18:
A10: Apr | B10: 400 | C10: 74.2 | D10: 259.4 | E10: 120 | F10: 74.9 | G10: 109 | K10: Apr | L10: 75.4 | M10: 214.8 | N10: 77.2 | O10: 109 | Q10: Mean: for 1/2 hourly and daily periods calculate mean of values across all operational combustion lines for the month
A11: May | B11: 400 | C11: 76.7 | D11: 265.7 | E11: 120 | F11: 77 | G11: 106.5 | K11: May | L11: 76.7 | M11: 265.7 | N11: 76.8 | O11: 97.2
A12: Jun | B12: 400 | C12: 92.4 | D12: 314.9 | E12: 120 | F12: 91.7 | G12: 109.5 | K12: Jun | L12: 93.4 | M12: 225.3 | N12: 92.1 | O12: 104.7
A13: Jul | B13: 400 | C13: 90.3 | D13: 240.7 | E13: 120 | F13: 90.7 | G13: 157.9 | K13: Jul | L13: 89 | M13: 240.7 | N13: 90.3 | O13: 157.9 | Q13: Maximum: for 1/2 hourly and daily periods use the highest value across all operational combustion lines for the month
A14: Aug | B14: 400 | C14: 87.6 | D14: 373.3 | E14: 120 | F14: 88 | G14: 111.8 | K14: Aug | L14: 97.1 | M14: 373.3 | N14: 95.3 | O14: 110.3
A15: Sep | B15: 400 | C15: 98.6 | D15: 226.6 | E15: 120 | F15: 99.1 | G15: 165.7 | K15: Sep | L15: 101.8 | M15: 205.9 | N15: 104 | O15: 165.7
A16: Oct | B16: 400 | C16: 96.3 | D16: 317.5 | E16: 120 | F16: 96.6 | G16: 126.8 | K16: Oct | L16: 97.9 | M16: 246 | N16: 97.9 | O16: 110.1
A17: Nov | B17: 400 | C17: 87.5 | D17: 335.2 | E17: 120 | F17: 87.5 | G17: 107.3 | K17: Nov | L17: 89.8 | M17: 335.2 | N17: 89.8 | O17: 104.5
A18: Dec | B18: 400 | C18: 91 | D18: 408.4 | E18: 120 | F18: 91.1 | G18: 128.5 | K18: Dec | L18: 91.7 | M18: 408.4 | N18: 92.2 | O18: 128.5
K19: Annual | L19: =AVERAGE(L7:L18) -> 86.61666667 | M19: =MAX(M7:M18) -> 408.4 | N19: =AVERAGE(N7:N18) -> 87.65 | O19: =MAX(O7:O18) -> 165.7
J21: =+A5 -> 2025 | K21: mg/Nm3 | L21: Monthly mean of half-hourly averages | M21: Highest half- hourly average | N21: Monthly mean of daily averages | O21: Highest daily average
J22: A2 | K22: Jan | L22: 72.8 | M22: 216.6 | N22: 73.9 | O22: 122.8
K23: Feb | L23: 64.8 | M23: 256.6 | N23: 66.7 | O23: 115.7
K24: Mar | L24: 74.1 | M24: 199.7 | N24: 74.2 | O24: 99
K25: Apr | L25: 73.1 | M25: 250.8 | N25: 73.3 | O25: 93.3
K26: May | L26: 81.4 | M26: 236.5 | N26: 81.6 | O26: 106.5
K27: Jun | L27: 94.9 | M27: 212.1 | N27: 94.8 | O27: 109.5
K28: Jul | L28: 94.4 | M28: 192.4 | N28: 94.3 | O28: 105.1
K29: Aug | L29: 90.1 | M29: 279.2 | N29: 91.2 | O29: 111.8
K30: Sep | L30: 96.4 | M30: 203.5 | N30: 96.4 | O30: 106.1
K31: Oct | L31: 94.1 | M31: 317.5 | N31: 94.3 | O31: 107.6
K32: Nov | L32: 82.5 | M32: 186.8 | N32: 82.8 | O32: 107.3
K33: Dec | L33: 86.4 | M33: 256.9 | N33: 86.5 | O33: 112.7
K34: Annual | L34: =AVERAGE(L22:L33) -> 83.75 | M34: =MAX(M22:M33) -> 317.5 | N34: =AVERAGE(N22:N33) -> 84.16666667 | O34: =MAX(O22:O33) -> 122.8
J36: =+A5 -> 2025 | K36: mg/Nm3 | L36: Monthly mean of half-hourly averages | M36: Highest half- hourly average | N36: Monthly mean of daily averages | O36: Highest daily average
J37: A3 | K37: Jan | L37: 66.6 | M37: 203.6 | N37: 67.5 | O37: 97.7
K38: Feb | L38: 66.9 | M38: 220.3 | N38: 69.5 | O38: 119.2
K39: Mar | L39: 60.4 | M39: 263.2 | N39: 60.5 | O39: 96.1
K40: Apr | L40: 74.1 | M40: 259.4 | N40: 74.4 | O40: 103.1
K41: May | L41: 72.1 | M41: 221.5 | N41: 72.6 | O41: 100.8
K42: Jun | L42: 89.1 | M42: 314.9 | N42: 88.8 | O42: 108.1
K43: Jul | L43: 87.6 | M43: 203.3 | N43: 87.7 | O43: 105.9
K44: Aug | L44: 75.7 | M44: 224.5 | N44: 77.6 | O44: 105.6
K45: Sep | L45: 97.7 | M45: 226.6 | N45: 97 | O45: 109.6
K46: Oct | L46: 96.9 | M46: 309.7 | N46: 97.7 | O46: 126.8
K47: Nov | L47: 90.2 | M47: 307.7 | N47: 90 | O47: 102.7
A48: Comments : | K48: Dec | L48: 95 | M48: 201.8 | N48: 94.8 | O48: 110
K49: Annual | L49: =AVERAGE(L37:L48) -> 81.025 | M49: =MAX(M37:M48) -> 314.9 | N49: =AVERAGE(N37:N48) -> 81.50833333 | O49: =MAX(O37:O48) -> 126.8
J51: =+A5 -> 2025 | K51: mg/Nm3 | L51: Monthly mean of half-hourly averages | M51: Highest half- hourly average | N51: Monthly mean of daily averages | O51: Highest daily average
J52: A4 | K52: Jan | L52: N/A | M52: N/A | N52: N/A | O52: N/A
K53: Feb
K54: Mar
K55: Apr
K56: May
K57: Jun
K58: Jul
K59: Aug
K60: Sep
K61: Oct
K62: Nov
K63: Dec
K64: Annual | L64: =AVERAGE(L52:L63) ->  | M64: =MAX(M52:M63) -> 0 | N64: =AVERAGE(N52:N63) ->  | O64: =MAX(O52:O63) -> 0
J66: =+A5 -> 2025 | K66: mg/Nm3 | L66: Monthly mean of half-hourly averages | M66: Highest half- hourly average | N66: Monthly mean of daily averages | O66: Highest daily average
J67: A5 | K67: Jan | L67: N/A | M67: N/A | N67: N/A | O67: N/A
K68: Feb
K69: Mar
K70: Apr
K71: May
K72: Jun
K73: Jul
K74: Aug
K75: Sep
K76: Oct
K77: Nov
K78: Dec
K79: Annual | L79: =AVERAGE(L67:L78) ->  | M79: =MAX(M67:M78) -> 0 | N79: =AVERAGE(N67:N78) ->  | O79: =MAX(O67:O78) -> 0

Sheet TOC
A1: =+'Cover Page'!$B$29 -> Annual Performance Report 2025 | E1: =+'Cover Page'!$B$33 -> Issue Date:
A3: Monitoring of Total organic carbon emissions | D3: Whole Installation | G3: See Notes in Cell Q3 | J3: =+A3 -> Monitoring of Total organic carbon emissions | N3: Per Combustion Line | Q3: Notes:
Q4: User to add logic to complete Whole installation, Table A5:G18. From the data in Per Combustion Line, Table J6:O79, subject to No. of lines installed
A5: =+'Cover Page'!C39 -> 2025 | B5: 1/2 Hourly Reference Periods | E5: Daily Reference Periods
A6: mg/Nm3 | B6: 1/2 hourly TOC ELV | C6: Monthly mean of half-hourly averages | D6: Highest half- hourly average | E6: Daily TOC ELV | F6: Monthly mean of daily averages | G6: Highest daily average | J6: =+A5 -> 2025 | K6: mg/Nm3 | L6: Monthly mean of half-hourly averages | M6: Highest half- hourly average | N6: Monthly mean of daily averages | O6: Highest daily average
A7: Jan | B7: 20 | C7: 0.2 | D7: 4 | E7: 10 | F7: 0.2 | G7: 1.4 | J7: A1 | K7: Jan | L7: 0.1 | M7: 4 | N7: 0.1 | O7: 0.6
A8: Feb | B8: 20 | C8: 0.2 | D8: 7 | E8: 10 | F8: 0.3 | G8: 3.3 | K8: Feb | L8: 0.2 | M8: 7 | N8: 0.3 | O8: 3.3
A9: Mar | B9: 20 | C9: 0.3 | D9: 31.9 | E9: 10 | F9: 0.3 | G9: 1.4 | K9: Mar | L9: 0.2 | M9: 31.9 | N9: 0.2 | O9: 0.8 | Q9: Whole Installation table A5:G18:
A10: Apr | B10: 20 | C10: 0.4 | D10: 7.2 | E10: 10 | F10: 0.3 | G10: 1.7 | K10: Apr | L10: 0.3 | M10: 7.1 | N10: 0.2 | O10: 1.3 | Q10: Mean: for 1/2 hourly and daily periods calculate mean of values across all operational combustion lines for the month
A11: May | B11: 20 | C11: 0.2 | D11: 4.5 | E11: 10 | F11: 0.2 | G11: 1 | K11: May | L11: 0.1 | M11: 0.5 | N11: 0.1 | O11: 0.3
A12: Jun | B12: 20 | C12: 0.2 | D12: 7 | E12: 10 | F12: 0.2 | G12: 0.9 | K12: Jun | L12: 0.1 | M12: 7 | N12: 0.1 | O12: 0.9
A13: Jul | B13: 20 | C13: 0.3 | D13: 3.4 | E13: 10 | F13: 0.3 | G13: 1.1 | K13: Jul | L13: 0.2 | M13: 3.1 | N13: 0.2 | O13: 0.8 | Q13: Maximum: for 1/2 hourly and daily periods use the highest value across all operational combustion lines for the month
A14: Aug | B14: 20 | C14: 0.3 | D14: 3.5 | E14: 10 | F14: 0.3 | G14: 1.9 | K14: Aug | L14: 0.2 | M14: 3.5 | N14: 0.2 | O14: 0.7
A15: Sep | B15: 20 | C15: 0.3 | D15: 7.8 | E15: 10 | F15: 0.3 | G15: 1.4 | K15: Sep | L15: 0.3 | M15: 7.8 | N15: 0.3 | O15: 1.4
A16: Oct | B16: 20 | C16: 0.2 | D16: 9.7 | E16: 10 | F16: 0.2 | G16: 1.3 | K16: Oct | L16: 0.1 | M16: 1 | N16: 0 | O16: 0.2
A17: Nov | B17: 20 | C17: 0.1 | D17: 6.1 | E17: 10 | F17: 0.1 | G17: 0.7 | K17: Nov | L17: 0.1 | M17: 4.8 | N17: 0 | O17: 0.7
A18: Dec | B18: 20 | C18: 0.1 | D18: 58.7 | E18: 10 | F18: 0.2 | G18: 8.2 | K18: Dec | L18: 0.1 | M18: 58.7 | N18: 0.3 | O18: 8.2
K19: Annual | L19: =AVERAGE(L7:L18) -> 0.1666666667 | M19: =MAX(M7:M18) -> 58.7 | N19: =AVERAGE(N7:N18) -> 0.1666666667 | O19: =MAX(O7:O18) -> 8.2
J21: =+A5 -> 2025 | K21: mg/Nm3 | L21: Monthly mean of half-hourly averages | M21: Highest half- hourly average | N21: Monthly mean of daily averages | O21: Highest daily average
J22: A2 | K22: Jan | L22: 0.4 | M22: 3.6 | N22: 0.4 | O22: 1.4
K23: Feb | L23: 0.4 | M23: 5 | N23: 0.4 | O23: 1.2
K24: Mar | L24: 0.5 | M24: 5.4 | N24: 0.5 | O24: 1.4
K25: Apr | L25: 0.5 | M25: 6.2 | N25: 0.5 | O25: 1.6
K26: May | L26: 0.3 | M26: 4.4 | N26: 0.3 | O26: 0.9
K27: Jun | L27: 0.3 | M27: 3 | N27: 0.3 | O27: 0.6
K28: Jul | L28: 0.4 | M28: 3.4 | N28: 0.4 | O28: 1.1
K29: Aug | L29: 0.3 | M29: 2.7 | N29: 0.4 | O29: 1.9
K30: Sep | L30: 0.3 | M30: 5.4 | N30: 0.3 | O30: 1
K31: Oct | L31: 0.3 | M31: 9.7 | N31: 0.3 | O31: 1
K32: Nov | L32: 0.2 | M32: 5.8 | N32: 0.2 | O32: 0.6
K33: Dec | L33: 0.3 | M33: 8.2 | N33: 0.2 | O33: 0.8
K34: Annual | L34: =AVERAGE(L22:L33) -> 0.35 | M34: =MAX(M22:M33) -> 9.7 | N34: =AVERAGE(N22:N33) -> 0.35 | O34: =MAX(O22:O33) -> 1.9
J36: =+A5 -> 2025 | K36: mg/Nm3 | L36: Monthly mean of half-hourly averages | M36: Highest half- hourly average | N36: Monthly mean of daily averages | O36: Highest daily average
J37: A3 | K37: Jan | L37: 0.2 | M37: 2.4 | N37: 0.1 | O37: 0.5
K38: Feb | L38: 0.2 | M38: 6.2 | N38: 0.2 | O38: 0.8
K39: Mar | L39: 0.3 | M39: 3.8 | N39: 0.2 | O39: 0.8
K40: Apr | L40: 0.4 | M40: 7.2 | N40: 0.4 | O40: 1.7
K41: May | L41: 0.3 | M41: 4.5 | N41: 0.3 | O41: 1
K42: Jun | L42: 0.2 | M42: 1.3 | N42: 0.2 | O42: 0.4
K43: Jul | L43: 0.4 | M43: 3.4 | N43: 0.4 | O43: 1.1
K44: Aug | L44: 0.5 | M44: 1.2 | N44: 0.4 | O44: 0.6
K45: Sep | L45: 0.4 | M45: 1.4 | N45: 0.3 | O45: 0.6
K46: Oct | L46: 0.3 | M46: 8 | N46: 0.3 | O46: 1.3
K47: Nov | L47: 0.2 | M47: 6.1 | N47: 0.2 | O47: 0.7
A48: Comments : | K48: Dec | L48: 0.1 | M48: 14.2 | N48: 0.1 | O48: 1.1
K49: Annual | L49: =AVERAGE(L37:L48) -> 0.2916666667 | M49: =MAX(M37:M48) -> 14.2 | N49: =AVERAGE(N37:N48) -> 0.2583333333 | O49: =MAX(O37:O48) -> 1.7
J51: =+A5 -> 2025 | K51: mg/Nm3 | L51: Monthly mean of half-hourly averages | M51: Highest half- hourly average | N51: Monthly mean of daily averages | O51: Highest daily average
J52: A4 | K52: Jan | L52: N/A | M52: N/A | N52: N/A | O52: N/A
K53: Feb
K54: Mar
K55: Apr
K56: May
K57: Jun
K58: Jul
K59: Aug
K60: Sep
K61: Oct
K62: Nov
K63: Dec
K64: Annual | L64: =AVERAGE(L52:L63) ->  | M64: =MAX(M52:M63) -> 0 | N64: =AVERAGE(N52:N63) ->  | O64: =MAX(O52:O63) -> 0
J66: =+A5 -> 2025 | K66: mg/Nm3 | L66: Monthly mean of half-hourly averages | M66: Highest half- hourly average | N66: Monthly mean of daily averages | O66: Highest daily average
J67: A5 | K67: Jan | L67: N/A | M67: N/A | N67: N/A | O67: N/A
K68: Feb
K69: Mar
K70: Apr
K71: May
K72: Jun
K73: Jul
K74: Aug
K75: Sep
K76: Oct
K77: Nov
K78: Dec
K79: Annual | L79: =AVERAGE(L67:L78) ->  | M79: =MAX(M67:M78) -> 0 | N79: =AVERAGE(N67:N78) ->  | O79: =MAX(O67:O78) -> 0

Sheet Particulates
A1: =+'Cover Page'!$B$29 -> Annual Performance Report 2025 | E1: =+'Cover Page'!$B$33 -> Issue Date:
A3: Monitoring of Particulate matter emissions | D3: Whole Installation | G3: See Notes in Cell Q3 | J3: =+A3 -> Monitoring of Particulate matter emissions | N3: Per Combustion Line | Q3: Notes:
A5: =+'Cover Page'!C39 -> 2025 | B5: 1/2 Hourly Reference Periods | E5: Daily Reference Periods | Q5: User to add logic to complete Whole installation, Table A5:G18. From the data in Per Combustion Line, Table J6:O79, subject to No. of lines installed
A6: mg/Nm3 | B6: 1/2 hourly PM ELV | C6: Monthly mean of half-hourly averages | D6: Highest half- hourly average | E6: Daily PM ELV | F6: Monthly mean of daily averages | G6: Highest daily average | J6: =+A5 -> 2025 | K6: mg/Nm3 | L6: Monthly mean of half-hourly averages | M6: Highest half- hourly average | N6: Monthly mean of daily averages | O6: Highest daily average
A7: Jan | B7: 30 | C7: 0.1 | D7: 2.6 | E7: 5 | F7: 0 | G7: 0.4 | J7: A1 | K7: Jan | L7: 0.1 | M7: 2.6 | N7: 0 | O7: 0.4
A8: Feb | B8: 30 | C8: 0.1 | D8: 44.5 | E8: 5 | F8: 0.5 | G8: 24.6 | K8: Feb | L8: 0.2 | M8: 44.5 | N8: 1.3 | O8: 24.6
A9: Mar | B9: 30 | C9: 0.1 | D9: 2.7 | E9: 5 | F9: 0.1 | G9: 0.5 | K9: Mar | L9: 0.1 | M9: 2.7 | N9: 0.1 | O9: 0.4
A10: Apr | B10: 30 | C10: 0.1 | D10: 3 | E10: 5 | F10: 0.1 | G10: 0.6 | K10: Apr | L10: 0.1 | M10: 0.6 | N10: 0 | O10: 0.2 | Q10: Whole Installation table A5:G18:
A11: May | B11: 30 | C11: 0.1 | D11: 1.8 | E11: 5 | F11: 0.1 | G11: 0.4 | K11: May | L11: 0 | M11: 0.1 | N11: 0 | O11: 0.1 | Q11: Mean: for 1/2 hourly and daily periods calculate mean of values across all operational combustion lines for the month
A12: Jun | B12: 30 | C12: 0.3 | D12: 3.3 | E12: 5 | F12: 0.2 | G12: 1.5 | K12: Jun | L12: 0.6 | M12: 3.3 | N12: 0.6 | O12: 1.5
A13: Jul | B13: 30 | C13: 0.3 | D13: 1.7 | E13: 5 | F13: 0.2 | G13: 1.4 | K13: Jul | L13: 0.5 | M13: 1.7 | N13: 0.5 | O13: 1.4
A14: Aug | B14: 30 | C14: 0.2 | D14: 7.5 | E14: 5 | F14: 0.2 | G14: 3 | K14: Aug | L14: 0.3 | M14: 6.3 | N14: 0.3 | O14: 2 | Q14: Maximum: for 1/2 hourly and daily periods use the highest value across all operational combustion lines for the month
A15: Sep | B15: 30 | C15: 0.2 | D15: 1.5 | E15: 5 | F15: 0.1 | G15: 0.4 | K15: Sep | L15: 0.2 | M15: 1.5 | N15: 0.1 | O15: 0.3
A16: Oct | B16: 30 | C16: 0.2 | D16: 5.8 | E16: 5 | F16: 0.2 | G16: 1.4 | K16: Oct | L16: 0.2 | M16: 1.9 | N16: 0.2 | O16: 0.6
A17: Nov | B17: 30 | C17: 0.4 | D17: 3 | E17: 5 | F17: 0.4 | G17: 0.9 | K17: Nov | L17: 0.6 | M17: 3 | N17: 0.6 | O17: 0.8
A18: Dec | B18: 30 | C18: 0.6 | D18: 2.1 | E18: 5 | F18: 0.8 | G18: 0.9 | K18: Dec | L18: 0.7 | M18: 2.1 | N18: 0.7 | O18: 0.9
K19: Annual | L19: =AVERAGE(L7:L18) -> 0.3 | M19: =MAX(M7:M18) -> 44.5 | N19: =AVERAGE(N7:N18) -> 0.3666666667 | O19: =MAX(O7:O18) -> 24.6
J21: =+A5 -> 2025 | K21: mg/Nm3 | L21: Monthly mean of half-hourly averages | M21: Highest half- hourly average | N21: Monthly mean of daily averages | O21: Highest daily average
J22: A2 | K22: Jan | L22: 0.2 | M22: 1.1 | N22: 0.1 | O22: 0.4
K23: Feb | L23: 0.2 | M23: 2 | N23: 0.2 | O23: 0.4
K24: Mar | L24: 0.3 | M24: 1 | N24: 0.3 | O24: 0.5
K25: Apr | L25: 0.3 | M25: 3 | N25: 0.3 | O25: 0.6
K26: May | L26: 0.3 | M26: 1.8 | N26: 0.3 | O26: 0.4
K27: Jun | L27: 0.2 | M27: 1.1 | N27: 0.2 | O27: 0.3
K28: Jul | L28: 0.3 | M28: 0.8 | N28: 0.2 | O28: 0.4
K29: Aug | L29: 0.3 | M29: 7.5 | N29: 0.4 | O29: 3
K30: Sep | L30: 0.3 | M30: 1.2 | N30: 0.3 | O30: 0.4
K31: Oct | L31: 0.4 | M31: 5.8 | N31: 0.4 | O31: 1.4
K32: Nov | L32: 0.3 | M32: 1 | N32: 0.3 | O32: 0.4
K33: Dec | L33: 0.5 | M33: 1.7 | N33: 0.4 | O33: 0.8
K34: Annual | L34: =AVERAGE(L22:L33) -> 0.3 | M34: =MAX(M22:M33) -> 7.5 | N34: =AVERAGE(N22:N33) -> 0.2833333333 | O34: =MAX(O22:O33) -> 3
J36: =+A5 -> 2025 | K36: mg/Nm3 | L36: Monthly mean of half-hourly averages | M36: Highest half- hourly average | N36: Monthly mean of daily averages | O36: Highest daily average
J37: A3 | K37: Jan | L37: 0.1 | M37: 0.7 | N37: 0 | O37: 0.2
K38: Feb | L38: 0.1 | M38: 0.5 | N38: 0 | O38: 0.1
K39: Mar | L39: 0.1 | M39: 1.1 | N39: 0 | O39: 0.2
K40: Apr | L40: 0.1 | M40: 1.1 | N40: 0.1 | O40: 0.3
K41: May | L41: 0.1 | M41: 0.8 | N41: 0.1 | O41: 0.2
K42: Jun | L42: 0.1 | M42: 0.3 | N42: 0 | O42: 0.1
K43: Jul | L43: 0.1 | M43: 0.9 | N43: 0.1 | O43: 0.2
K44: Aug | L44: 0.1 | M44: 0.3 | N44: 0 | O44: 0.1
K45: Sep | L45: 0.1 | M45: 0.7 | N45: 0 | O45: 0.2
K46: Oct | L46: 0.2 | M46: 1 | N46: 0.2 | O46: 0.5
K47: Nov | L47: 0.5 | M47: 1.6 | N47: 0.5 | O47: 0.9
A48: Comments : | K48: Dec | L48: 0.6 | M48: 2.1 | N48: 0.5 | O48: 0.8
K49: Annual | L49: =AVERAGE(L37:L48) -> 0.1833333333 | M49: =MAX(M37:M48) -> 2.1 | N49: =AVERAGE(N37:N48) -> 0.125 | O49: =MAX(O37:O48) -> 0.9
J51: =+A5 -> 2025 | K51: mg/Nm3 | L51: Monthly mean of half-hourly averages | M51: Highest half- hourly average | N51: Monthly mean of daily averages | O51: Highest daily average
J52: A4 | K52: Jan | L52: N/A | M52: N/A | N52: N/A | O52: N/A
K53: Feb
K54: Mar
K55: Apr
K56: May
K57: Jun
K58: Jul
K59: Aug
K60: Sep
K61: Oct
K62: Nov
K63: Dec
K64: Annual | L64: =AVERAGE(L52:L63) ->  | M64: =MAX(M52:M63) -> 0 | N64: =AVERAGE(N52:N63) ->  | O64: =MAX(O52:O63) -> 0
J66: =+A5 -> 2025 | K66: mg/Nm3 | L66: Monthly mean of half-hourly averages | M66: Highest half- hourly average | N66: Monthly mean of daily averages | O66: Highest daily average
J67: A5 | K67: Jan | L67: N/A | M67: N/A | N67: N/A | O67: N/A
K68: Feb
K69: Mar
K70: Apr
K71: May
K72: Jun
K73: Jul
K74: Aug
K75: Sep
K76: Oct
K77: Nov
K78: Dec
K79: Annual | L79: =AVERAGE(L67:L78) ->  | M79: =MAX(M67:M78) -> 0 | N79: =AVERAGE(N67:N78) ->  | O79: =MAX(O67:O78) -> 0

Sheet CO 0.5 hourly
A1: =+'Cover Page'!$B$29 -> Annual Performance Report 2025 | E1: =+'Cover Page'!$B$33 -> Issue Date:
A3: Monitoring of Carbon Monoxide (half hourly) | D3: Whole Installation | G3: See Notes in Cell Q3 | J3: =+A3 -> Monitoring of Carbon Monoxide (half hourly) | N3: Per Combustion Line | Q3: Notes:
A5: Please complete this tab for your plant if you have 1/2 hourly CO ELVs; otherwise, leave it blank and complete the CO 95% 10 min tab
Q7: User to add logic to complete Whole installation, Table A5:G18. From the data in Per Combustion Line, Table J6:O79, subject to No. of lines installed
A8: =+'Cover Page'!C39 -> 2025 | B8: 1/2 Hourly Reference Periods | E8: Daily Reference Periods
A9: mg/Nm3 | B9: 1/2 hourly CO ELV | C9: Monthly mean of half-hourly averages | D9: Highest half- hourly average | E9: Daily CO ELV | F9: Monthly mean of daily averages | G9: Highest daily average | J9: =+A8 -> 2025 | K9: mg/Nm3 | L9: Monthly mean of half-hourly averages | M9: Highest half- hourly average | N9: Monthly mean of daily averages | O9: Highest daily average
A10: Jan | B10: 100 | C10: 0.9 | D10: 66.7 | E10: 50 | F10: 1 | G10: 6.2 | J10: A1 | K10: Jan | L10: 0.5 | M10: 66.7 | N10: 0.6 | O10: 6.2
A11: Feb | B11: =+B10 -> 100 | C11: 1 | D11: 32.4 | E11: =+E10 -> 50 | F11: 1.2 | G11: 12.6 | K11: Feb | L11: 0.6 | M11: 32.4 | N11: 1.2 | O11: 12.6
A12: Mar | B12: =+B11 -> 100 | C12: 1.1 | D12: 74.2 | E12: =+E11 -> 50 | F12: 1 | G12: 4.1 | K12: Mar | L12: 0.7 | M12: 73.9 | N12: 0.7 | O12: 3.6 | Q12: Whole Installation table A5:G18:
A13: Apr | B13: 100 | C13: 1.2 | D13: 92.9 | E13: 50 | F13: 1.2 | G13: 6 | K13: Apr | L13: 0.8 | M13: 37.6 | N13: 0.8 | O13: 4.7 | Q13: Mean: for 1/2 hourly and daily periods calculate mean of values across all operational combustion lines for the month
A14: May | B14: 100 | C14: 0.9 | D14: 21.6 | E14: 50 | F14: 0.9 | G14: 3.9 | K14: May | L14: 0.5 | M14: 10.8 | N14: 0.5 | O14: 0.8
A15: Jun | B15: 100 | C15: 0.9 | D15: 104.4 | E15: 50 | F15: 0.9 | G15: 3.8 | K15: Jun | L15: 0.5 | M15: 14.5 | N15: 0.5 | O15: 1.2
A16: Jul | B16: 100 | C16: 1.1 | D16: 45 | E16: 50 | F16: 1.1 | G16: 4 | K16: Jul | L16: 0.8 | M16: 45 | N16: 0.9 | O16: 4 | Q16: Maximum: for 1/2 hourly and daily periods use the highest value across all operational combustion lines for the month
A17: Aug | B17: 100 | C17: 1 | D17: 62.6 | E17: 50 | F17: 0.9 | G17: 7 | K17: Aug | L17: 0.7 | M17: 62.6 | N17: 0.7 | O17: 6.7
A18: Sep | B18: 100 | C18: 0.9 | D18: 67.2 | E18: 50 | F18: 0.9 | G18: 7 | K18: Sep | L18: 0.7 | M18: 64.5 | N18: 0.7 | O18: 6.7
A19: Oct | B19: 100 | C19: 0.9 | D19: 91.5 | E19: 50 | F19: 0.9 | G19: 6.9 | K19: Oct | L19: 0.4 | M19: 3.8 | N19: 0.4 | O19: 0.6
A20: Nov | B20: 100 | C20: 1 | D20: 57.6 | E20: 50 | F20: 1 | G20: 6.5 | K20: Nov | L20: 0.6 | M20: 49.9 | N20: 0.5 | O20: 4.4
A21: Dec | B21: 100 | C21: 1 | D21: 58.4 | E21: 50 | F21: 1 | G21: 6.4 | K21: Dec | L21: 0.6 | M21: 47.6 | N21: 0.6 | O21: 5.1
K22: Annual | L22: =AVERAGE(L10:L21) -> 0.6166666667 | M22: =MAX(M10:M21) -> 73.9 | N22: =AVERAGE(N10:N21) -> 0.675 | O22: =MAX(O10:O21) -> 12.6
J24: =+A8 -> 2025 | K24: mg/Nm3 | L24: Monthly mean of half-hourly averages | M24: Highest half- hourly average | N24: Monthly mean of daily averages | O24: Highest daily average
J25: A2 | K25: Jan | L25: 2.1 | M25: 62.5 | N25: 2.2 | O25: 6
K26: Feb | L26: 2.2 | M26: 14.5 | N26: 2.2 | O26: 3.5
K27: Mar | L27: 2.2 | M27: 74.2 | N27: 2.1 | O27: 4.1
K28: Apr | L28: 2.3 | M28: 92.9 | N28: 2.3 | O28: 6
K29: May | L29: 1.9 | M29: 21.6 | N29: 1.8 | O29: 3.9
K30: Jun | L30: 2 | M30: 47.7 | N30: 1.9 | O30: 3.8
K31: Jul | L31: 2 | M31: 13 | N31: 2 | O31: 3.8
K32: Aug | L32: 1.8 | M32: 50.4 | N32: 1.8 | O32: 7
K33: Sep | L33: 1.9 | M33: 67.2 | N33: 1.8 | O33: 7
K34: Oct | L34: 2.1 | M34: 91.5 | N34: 2.1 | O34: 6.9
K35: Nov | L35: 2 | M35: 46.7 | N35: 2 | O35: 6.5
K36: Dec | L36: 2.1 | M36: 56.1 | N36: 2.1 | O36: 6.4
K37: Annual | L37: =AVERAGE(L25:L36) -> 2.05 | M37: =MAX(M25:M36) -> 92.9 | N37: =AVERAGE(N25:N36) -> 2.025 | O37: =MAX(O25:O36) -> 7
J39: =+A8 -> 2025 | K39: mg/Nm3 | L39: Monthly mean of half-hourly averages | M39: Highest half- hourly average | N39: Monthly mean of daily averages | O39: Highest daily average
J40: A3 | K40: Jan | L40: 0.3 | M40: 16.3 | N40: 0.2 | O40: 0.7
K41: Feb | L41: 0.3 | M41: 17 | N41: 0.3 | O41: 2.4
K42: Mar | L42: 0.4 | M42: 11.4 | N42: 0.4 | O42: 1.7
K43: Apr | L43: 0.7 | M43: 22.4 | N43: 0.7 | O43: 3.6
K44: May | L44: 0.5 | M44: 20.1 | N44: 0.5 | O44: 2.8
K45: Jun | L45: 0.4 | M45: 104.4 | N45: 0.4 | O45: 3.5
K46: Jul | L46: 0.5 | M46: 12.1 | N46: 0.5 | O46: 3.8
K47: Aug | L47: 0.5 | M47: 34.2 | N47: 0.4 | O47: 1
K48: Sep | L48: 0.3 | M48: 24.2 | N48: 0.3 | O48: 1.5
K49: Oct | L49: 0.4 | M49: 56.2 | N49: 0.3 | O49: 3.7
K50: Nov | L50: 0.5 | M50: 57.6 | N50: 0.5 | O50: 5.7
A51: Comments : | K51: Dec | L51: 0.5 | M51: 58.4 | N51: 0.4 | O51: 6.4
K52: Annual | L52: =AVERAGE(L40:L51) -> 0.4416666667 | M52: =MAX(M40:M51) -> 104.4 | N52: =AVERAGE(N40:N51) -> 0.4083333333 | O52: =MAX(O40:O51) -> 6.4
J54: =+A8 -> 2025 | K54: mg/Nm3 | L54: Monthly mean of half-hourly averages | M54: Highest half- hourly average | N54: Monthly mean of daily averages | O54: Highest daily average
J55: A4 | K55: Jan | L55: N/A | M55: N/A | N55: N/A | O55: N/A
K56: Feb
K57: Mar
K58: Apr
K59: May
K60: Jun
K61: Jul
K62: Aug
K63: Sep
K64: Oct
K65: Nov
K66: Dec
K67: Annual | L67: =AVERAGE(L55:L66) ->  | M67: =MAX(M55:M66) -> 0 | N67: =AVERAGE(N55:N66) ->  | O67: =MAX(O55:O66) -> 0
J69: =+A8 -> 2025 | K69: mg/Nm3 | L69: Monthly mean of half-hourly averages | M69: Highest half- hourly average | N69: Monthly mean of daily averages | O69: Highest daily average
J70: A5 | K70: Jan | L70: N/A | M70: N/A | N70: N/A | O70: N/A
K71: Feb
K72: Mar
K73: Apr
K74: May
K75: Jun
K76: Jul
K77: Aug
K78: Sep
K79: Oct
K80: Nov
K81: Dec
K82: Annual | L82: =AVERAGE(L70:L81) ->  | M82: =MAX(M70:M81) -> 0 | N82: =AVERAGE(N70:N81) ->  | O82: =MAX(O70:O81) -> 0

Sheet CO 95% 10 min
A1: =+'Cover Page'!$B$29 -> Annual Performance Report 2025 | E1: =+'Cover Page'!$B$33 -> Issue Date:
A3: Monitoring of Carbon Monoxide (10-minute avg) | E3: Whole Installation | H3: See Notes in Cell S3 | J3: =+A3 -> Monitoring of Carbon Monoxide (10-minute avg) | O3: Per Combustion Line | Q3: Notes: | S3: Notes:
A5: Please complete this tab for your plant if you have 10-minute average CO ELVs; otherwise, leave it blank and complete the CO 0.5 hourly tab
S7: User to add logic to complete Whole installation, Table A5:H18. From the data in Per Combustion Line, Table K6:Q79, subject to No. of lines installed
A8: =+'Cover Page'!C39 -> 2025 | B8: 10-minute Reference Periods | F8: Daily Reference Periods
A9: mg/Nm3 | B9: 95%ile 10-min avg CO ELV | C9: Highest daily 95%ile 10-min average | D9: Monthly mean of 10-min averages | E9: Highest 10-min average | F9: Daily CO ELV | G9: Monthly mean of daily averages | H9: Highest daily average | K9: =+A8 -> 2025 | L9: mg/Nm3 | M9: Highest daily 95%ile 10-min average | N9: Monthly mean of 10-min averages | O9: Highest 10-min average | P9: Monthly mean of daily averages | Q9: Highest daily average
A10: Jan | B10: 150 | F10: 50 | K10: A1 | L10: Jan | M10: N/A | N10: N/A | O10: N/A | P10: N/A | Q10: N/A
A11: Feb | B11: =+B10 -> 150 | F11: =+F10 -> 50 | L11: Feb | M11: N/A | N11: N/A | O11: N/A | P11: N/A | Q11: N/A
A12: Mar | B12: =+B11 -> 150 | F12: =+F11 -> 50 | L12: Mar | M12: N/A | N12: N/A | O12: N/A | P12: N/A | Q12: N/A | S12: Whole Installation table A5:H18:
A13: Apr | B13: 150 | F13: 50 | L13: Apr | M13: N/A | N13: N/A | O13: N/A | P13: N/A | Q13: N/A | S13: Mean: for 10-min and daily periods use average of all operational combustion lines.
A14: May | B14: 150 | F14: 50 | L14: May | M14: N/A | N14: N/A | O14: N/A | P14: N/A | Q14: N/A
A15: Jun | B15: 150 | F15: 50 | L15: Jun | M15: N/A | N15: N/A | O15: N/A | P15: N/A | Q15: N/A
A16: Jul | B16: 150 | F16: 50 | L16: Jul | M16: N/A | N16: N/A | O16: N/A | P16: N/A | Q16: N/A | S16: Maximum: for 10-min and daily periods use the highest of all operational combustion lines in any month.
A17: Aug | B17: 150 | F17: 50 | L17: Aug | M17: N/A | N17: N/A | O17: N/A | P17: N/A | Q17: N/A
A18: Sep | B18: 150 | F18: 50 | L18: Sep | M18: N/A | N18: N/A | O18: N/A | P18: N/A | Q18: N/A
A19: Oct | B19: 150 | F19: 50 | L19: Oct | M19: N/A | N19: N/A | O19: N/A | P19: N/A | Q19: N/A
A20: Nov | B20: 150 | F20: 50 | L20: Nov | M20: N/A | N20: N/A | O20: N/A | P20: N/A | Q20: N/A
A21: Dec | B21: 150 | F21: 50 | L21: Dec | M21: N/A | N21: N/A | O21: N/A | P21: N/A | Q21: N/A
L22: Annual | M22: =AVERAGE(M10:M21) ->  | O22: =MAX(O10:O21) -> 0 | P22: =AVERAGE(P10:P21) ->  | Q22: =MAX(Q10:Q21) -> 0
K24: =+A8 -> 2025 | L24: mg/Nm3 | M24: Highest daily 95%ile 10-min average | N24: Monthly mean of 10-min averages | O24: Highest 10-min average | P24: Monthly mean of daily averages | Q24: Highest daily average
K25: A2 | L25: Jan | M25: N/A | N25: N/A | O25: N/A | P25: N/A | Q25: N/A
L26: Feb | M26: N/A | N26: N/A | O26: N/A | P26: N/A | Q26: N/A
L27: Mar | M27: N/A | N27: N/A | O27: N/A | P27: N/A | Q27: N/A
L28: Apr | M28: N/A | N28: N/A | O28: N/A | P28: N/A | Q28: N/A
L29: May | M29: N/A | N29: N/A | O29: N/A | P29: N/A | Q29: N/A
L30: Jun | M30: N/A | N30: N/A | O30: N/A | P30: N/A | Q30: N/A
L31: Jul | M31: N/A | N31: N/A | O31: N/A | P31: N/A | Q31: N/A
L32: Aug | M32: N/A | N32: N/A | O32: N/A | P32: N/A | Q32: N/A
L33: Sep | M33: N/A | N33: N/A | O33: N/A | P33: N/A | Q33: N/A
L34: Oct | M34: N/A | N34: N/A | O34: N/A | P34: N/A | Q34: N/A
L35: Nov | M35: N/A | N35: N/A | O35: N/A | P35: N/A | Q35: N/A
L36: Dec | M36: N/A | N36: N/A | O36: N/A | P36: N/A | Q36: N/A
L37: Annual | M37: =AVERAGE(M25:M36) ->  | O37: =MAX(O25:O36) -> 0 | P37: =AVERAGE(P25:P36) ->  | Q37: =MAX(Q25:Q36) -> 0
K39: =+A8 -> 2025 | L39: mg/Nm3 | M39: Highest daily 95%ile 10-min average | N39: Monthly mean of 10-min averages | O39: Highest 10-min average | P39: Monthly mean of daily averages | Q39: Highest daily average
K40: A3 | L40: Jan | M40: N/A | N40: N/A | O40: N/A | P40: N/A | Q40: N/A
L41: Feb | M41: N/A | N41: N/A | O41: N/A | P41: N/A | Q41: N/A
L42: Mar | M42: N/A | N42: N/A | O42: N/A | P42: N/A | Q42: N/A
L43: Apr | M43: N/A | N43: N/A | O43: N/A | P43: N/A | Q43: N/A
L44: May | M44: N/A | N44: N/A | O44: N/A | P44: N/A | Q44: N/A
L45: Jun | M45: N/A | N45: N/A | O45: N/A | P45: N/A | Q45: N/A
L46: Jul | M46: N/A | N46: N/A | O46: N/A | P46: N/A | Q46: N/A
L47: Aug | M47: N/A | N47: N/A | O47: N/A | P47: N/A | Q47: N/A
L48: Sep | M48: N/A | N48: N/A | O48: N/A | P48: N/A | Q48: N/A
L49: Oct | M49: N/A | N49: N/A | O49: N/A | P49: N/A | Q49: N/A
L50: Nov | M50: N/A | N50: N/A | O50: N/A | P50: N/A | Q50: N/A
A51: Comments : | L51: Dec | M51: N/A | N51: N/A | O51: N/A | P51: N/A | Q51: N/A
A52: Environment Agency explanatory note: The 10-minute average ELV is based on the “95th percentile”. In this case this means that 95% of the 10 minute averages in the relevant 24-hour period (i.e. 137) must be below 150 mg/Nm3, and 5% (i.e. 7) are allowed to be any value above 150 mg/Nm3. Whilst we expect operators to minimise CO emissions at all times, it is perfectly acceptable for the value of the maximum 10-minute average to be above 150 mg/Nm3, provided the 95th percentile ELV has been met for that period. | L52: Annual | M52: =AVERAGE(M40:M51) ->  | O52: =MAX(O40:O51) -> 0 | P52: =AVERAGE(P40:P51) ->  | Q52: =MAX(Q40:Q51) -> 0
K54: =+A8 -> 2025 | L54: mg/Nm3 | M54: Highest daily 95%ile 10-min average | N54: Monthly mean of 10-min averages | O54: Highest 10-min average | P54: Monthly mean of daily averages | Q54: Highest daily average
K55: A4 | L55: Jan | M55: N/A | N55: N/A | O55: N/A | P55: N/A | Q55: N/A
L56: Feb | M56: N/A | N56: N/A | O56: N/A | P56: N/A | Q56: N/A
L57: Mar | M57: N/A | N57: N/A | O57: N/A | P57: N/A | Q57: N/A
L58: Apr | M58: N/A | N58: N/A | O58: N/A | P58: N/A | Q58: N/A
L59: May | M59: N/A | N59: N/A | O59: N/A | P59: N/A | Q59: N/A
L60: Jun | M60: N/A | N60: N/A | O60: N/A | P60: N/A | Q60: N/A
L61: Jul | M61: N/A | N61: N/A | O61: N/A | P61: N/A | Q61: N/A
L62: Aug | M62: N/A | N62: N/A | O62: N/A | P62: N/A | Q62: N/A
L63: Sep | M63: N/A | N63: N/A | O63: N/A | P63: N/A | Q63: N/A
L64: Oct | M64: N/A | N64: N/A | O64: N/A | P64: N/A | Q64: N/A
L65: Nov | M65: N/A | N65: N/A | O65: N/A | P65: N/A | Q65: N/A
L66: Dec | M66: N/A | N66: N/A | O66: N/A | P66: N/A | Q66: N/A
L67: Annual | M67: =AVERAGE(M55:M66) ->  | O67: =MAX(O55:O66) -> 0 | P67: =AVERAGE(P55:P66) ->  | Q67: =MAX(Q55:Q66) -> 0
K69: =+A8 -> 2025 | L69: mg/Nm3 | M69: 95%ile 10-min avg maximum | N69: Monthly CO 10-min avg mean | O69: 10-min avg maximum | P69: Monthly daily mean | Q69: Monthly daily maximum
K70: A5 | L70: Jan | M70: N/A | N70: N/A | O70: N/A | P70: N/A | Q70: N/A
L71: Feb | M71: N/A | N71: N/A | O71: N/A | P71: N/A | Q71: N/A
L72: Mar | M72: N/A | N72: N/A | O72: N/A | P72: N/A | Q72: N/A
L73: Apr | M73: N/A | N73: N/A | O73: N/A | P73: N/A | Q73: N/A
L74: May | M74: N/A | N74: N/A | O74: N/A | P74: N/A | Q74: N/A
L75: Jun | M75: N/A | N75: N/A | O75: N/A | P75: N/A | Q75: N/A
L76: Jul | M76: N/A | N76: N/A | O76: N/A | P76: N/A | Q76: N/A
L77: Aug | M77: N/A | N77: N/A | O77: N/A | P77: N/A | Q77: N/A
L78: Sep | M78: N/A | N78: N/A | O78: N/A | P78: N/A | Q78: N/A
L79: Oct | M79: N/A | N79: N/A | O79: N/A | P79: N/A | Q79: N/A
L80: Nov | M80: N/A | N80: N/A | O80: N/A | P80: N/A | Q80: N/A
L81: Dec | M81: N/A | N81: N/A | O81: N/A | P81: N/A | Q81: N/A
L82: Annual | M82: =AVERAGE(M70:M81) ->  | O82: =MAX(O70:O81) -> 0 | P82: =AVERAGE(P70:P81) ->  | Q82: =MAX(Q70:Q81) -> 0

Sheet NH3
A1: =+'Cover Page'!$B$29 -> Annual Performance Report 2025 | E1: =+'Cover Page'!$B$33 -> Issue Date:
A3: Monitoring of Ammnonia emissions | D3: Whole Installation | G3: See Notes in Cell Q3 | J3: =+A3 -> Monitoring of Ammnonia emissions | N3: Per Combustion Line | Q3: Notes:
Q4: User to add logic to complete Whole installation, Table A5:G18. From the data in Per Combustion Line, Table J6:O79, subject to No. of lines installed
A5: =+'Cover Page'!C39 -> 2025 | B5: 1/2 Hourly Reference Periods | E5: Daily Reference Periods
A6: mg/Nm3 | B6: 1/2 hourly NH3 ELV | C6: Monthly mean of half-hourly averages | D6: Highest half- hourly average | E6: Daily NH3 ELV | F6: Monthly mean of daily averages | G6: Highest daily average | J6: =+A5 -> 2025 | K6: mg/Nm3 | L6: Monthly mean of half-hourly averages | M6: Highest half- hourly average | N6: Monthly mean of daily averages | O6: Highest daily average
A7: Jan | B7: None | C7: 1.2 | D7: 14.8 | E7: 10 | F7: 1.2 | G7: 5.4 | J7: A1 | K7: Jan | L7: 0.6 | M7: 14.8 | N7: 0.6 | O7: 1.9
A8: Feb | B8: =+B7 -> None | C8: 3.1 | D8: 29.9 | E8: 10 | F8: 3.1 | G8: 8.9 | K8: Feb | L8: 3.2 | M8: 27.8 | N8: 3.3 | O8: 8.9
A9: Mar | B9: =+B8 -> None | C9: 2.6 | D9: 125.3 | E9: 10 | F9: 2.6 | G9: 12.7 | K9: Mar | L9: 2.6 | M9: 125.3 | N9: 2.6 | O9: 8.9 | Q9: Whole Installation table A5:G18:
A10: Apr | B10: None | C10: 1.8 | D10: 71.4 | E10: 10 | F10: 1.8 | G10: 10.5 | K10: Apr | L10: 1.6 | M10: 21.6 | N10: 1.5 | O10: 4.6 | Q10: Mean: for 1/2 hourly and daily periods calculate mean of values across all operational combustion lines for the month
A11: May | B11: None | C11: 1.2 | D11: 27.3 | E11: 10 | F11: 1.1 | G11: 8.2 | K11: May | L11: 1 | M11: 19.4 | N11: 1 | O11: 2.7
A12: Jun | B12: None | C12: 0.7 | D12: 70.9 | E12: 10 | F12: 0.8 | G12: 6.5 | K12: Jun | L12: 0.9 | M12: 70.9 | N12: 0.9 | O12: 6.5
A13: Jul | B13: None | C13: 0.8 | D13: 24.9 | E13: 10 | F13: 0.8 | G13: 5 | K13: Jul | L13: 0.9 | M13: 24.9 | N13: 0.9 | O13: 1.7 | Q13: Maximum: for 1/2 hourly and daily periods use the highest value across all operational combustion lines for the month
A14: Aug | B14: None | C14: 0.9 | D14: 18 | E14: 10 | F14: 0.9 | G14: 6.2 | K14: Aug | L14: 0.5 | M14: 14.3 | N14: 0.6 | O14: 2.1
A15: Sep | B15: None | C15: 0.5 | D15: 11.6 | E15: 10 | F15: 0.5 | G15: 6.8 | K15: Sep | L15: 0.3 | M15: 10.5 | N15: 0.4 | O15: 4.3
A16: Oct | B16: None | C16: 0.7 | D16: 16.3 | E16: 10 | F16: 0.7 | G16: 2.8 | K16: Oct | L16: 0.4 | M16: 16.3 | N16: 0.4 | O16: 2.5
A17: Nov | B17: None | C17: 0.8 | D17: 35.7 | E17: 10 | F17: 0.8 | G17: 5.7 | K17: Nov | L17: 0.7 | M17: 35.7 | N17: 0.7 | O17: 5.7
A18: Dec | B18: None | C18: 0.8 | D18: 10.3 | E18: 10 | F18: 0.8 | G18: 3 | K18: Dec | L18: 0.7 | M18: 10.3 | N18: 0.7 | O18: 1.9
K19: Annual | L19: =AVERAGE(L7:L18) -> 1.116666667 | M19: =MAX(M7:M18) -> 125.3 | N19: =AVERAGE(N7:N18) -> 1.133333333 | O19: =MAX(O7:O18) -> 8.9
J21: =+A5 -> 2025 | K21: mg/Nm3 | L21: Monthly mean of half-hourly averages | M21: Highest half- hourly average | N21: Monthly mean of daily averages | O21: Highest daily average
J22: A2 | K22: Jan | L22: 1.9 | M22: 13.9 | N22: 1.8 | O22: 5.4
K23: Feb | L23: 4.8 | M23: 29.9 | N23: 4.8 | O23: 7.9
K24: Mar | L24: 2.3 | M24: 20 | N24: 2.3 | O24: 8
K25: Apr | L25: 1.7 | M25: 47.8 | N25: 1.7 | O25: 10.5
K26: May | L26: 1.1 | M26: 7.1 | N26: 1 | O26: 2.9
K27: Jun | L27: 0.5 | M27: 13.1 | N27: 0.5 | O27: 1.5
K28: Jul | L28: 0.6 | M28: 11.7 | N28: 0.6 | O28: 2
K29: Aug | L29: 0.4 | M29: 10.2 | N29: 0.4 | O29: 1.8
K30: Sep | L30: 0.4 | M30: 4.8 | N30: 0.3 | O30: 1.1
K31: Oct | L31: 0.8 | M31: 13.6 | N31: 0.8 | O31: 2.8
K32: Nov | L32: 0.6 | M32: 5.5 | N32: 0.6 | O32: 1.4
K33: Dec | L33: 0.7 | M33: 8.9 | N33: 0.7 | O33: 1.9
K34: Annual | L34: =AVERAGE(L22:L33) -> 1.316666667 | M34: =MAX(M22:M33) -> 47.8 | N34: =AVERAGE(N22:N33) -> 1.291666667 | O34: =MAX(O22:O33) -> 10.5
J36: =+A5 -> 2025 | K36: mg/Nm3 | L36: Monthly mean of half-hourly averages | M36: Highest half- hourly average | N36: Monthly mean of daily averages | O36: Highest daily average
J37: A3 | K37: Jan | L37: 1.2 | M37: 11.6 | N37: 1.2 | O37: 3
K38: Feb | L38: 1.4 | M38: 10.5 | N38: 1.4 | O38: 3.5
K39: Mar | L39: 2.9 | M39: 76.3 | N39: 3 | O39: 12.7
K40: Apr | L40: 2.2 | M40: 71.4 | N40: 2.2 | O40: 6.6
K41: May | L41: 1.5 | M41: 27.3 | N41: 1.5 | O41: 8.2
K42: Jun | L42: 0.9 | M42: 19.5 | N42: 1 | O42: 2.9
K43: Jul | L43: 0.9 | M43: 19.4 | N43: 0.9 | O43: 5
K44: Aug | L44: 1.8 | M44: 18 | N44: 1.7 | O44: 6.2
K45: Sep | L45: 0.8 | M45: 11.6 | N45: 1 | O45: 6.8
K46: Oct | L46: 1 | M46: 11.4 | N46: 0.9 | O46: 1.8
K47: Nov | L47: 1.2 | M47: 13.8 | N47: 1.2 | O47: 2.7
A48: Comments : | K48: Dec | L48: 1.2 | M48: 8.8 | N48: 1.2 | O48: 3
A49: An indicated ELV value of zero in the table above means that no ammonia limit is/was set in the permit. | K49: Annual | L49: =AVERAGE(L37:L48) -> 1.416666667 | M49: =MAX(M37:M48) -> 76.3 | N49: =AVERAGE(N37:N48) -> 1.433333333 | O49: =MAX(O37:O48) -> 12.7
J51: =+A5 -> 2025 | K51: mg/Nm3 | L51: Monthly mean of half-hourly averages | M51: Highest half- hourly average | N51: Monthly mean of daily averages | O51: Highest daily average
J52: A4 | K52: Jan | L52: N/A | M52: N/A | N52: N/A | O52: N/A
K53: Feb
K54: Mar
K55: Apr
K56: May
K57: Jun
K58: Jul
K59: Aug
K60: Sep
K61: Oct
K62: Nov
K63: Dec
K64: Annual | L64: =AVERAGE(L52:L63) ->  | M64: =MAX(M52:M63) -> 0 | N64: =AVERAGE(N52:N63) ->  | O64: =MAX(O52:O63) -> 0
J66: =+A5 -> 2025 | K66: mg/Nm3 | L66: Monthly mean of half-hourly averages | M66: Highest half- hourly average | N66: Monthly mean of daily averages | O66: Highest daily average
J67: A5 | K67: Jan | L67: N/A | M67: N/A | N67: N/A | O67: N/A
K68: Feb
K69: Mar
K70: Apr
K71: May
K72: Jun
K73: Jul
K74: Aug
K75: Sep
K76: Oct
K77: Nov
K78: Dec
K79: Annual | L79: =AVERAGE(L67:L78) ->  | M79: =MAX(M67:M78) -> 0 | N79: =AVERAGE(N67:N78) ->  | O79: =MAX(O67:O78) -> 0

Sheet Template changes log
A1: Log of changes to template (Environment Agency use only)
A3: Date | B3: Description of change | C3: New version number and date
A4: 2024-01-16 | B4: Air (periodic) tab: corrected default O2 reference from 6 to 11% | C4: Version 23.5a (for incinerators) - 16/01/2024
A5: 2024-09-23 | B5: Air (periodic) tab: corrected symbol for Thallium to Tl
A6: 2024-09-23 | B6: Air (periodic) tab: removed last year's references to different emission limit values applying from 03/12/23 and updated all relevant ELVs
A7: 2024-09-23 | B7: Tabs for continuously monitored pollutants (HCl, SO2 etc.): changed terminology in table headings to improve clarity
A8: 2024-09-23 | B8: Tabs for continuously monitored pollutants (HCl, SO2 etc.): removed last year's references to different emission limit values applying from 03/12/23 and updated all relevant ELVs
A9: 2024-09-23 | B9: Perf 1 tab: updated formula for water usage to report m3 rather than litres and corrected error with formula copying operator name
A10: 2024-09-23 | B10: Operational Summary tab: table added on start-ups and shut-downs
A11: 2024-09-23 | B11: Operational Summary tab: table added on dioxins and mercury protocols
A12: 2024-09-23 | B12: Operational Summary tab: table added on AST, QAL 2 and calibration functions
A13: 2024-09-23 | B13: CO2 N2O tab: various changes made to notes to reflect the fact that most plants should now have calibrated CEMS and flow meters + some have C14 samplers and more up to date industry data | C13: Version 24a (for incinerators) - 23/09/24
A14: 2024-11-08 | B14: CO2 N2O tab: Changed the N2O CO2 equivalence factor from 298 to 265 in line with recently updated government greenhouse gas figures: https://www.gov.uk/government/publications/greenhouse-gas-reporting-conversion-factors-2024
A15: 2024-11-08 | B15: CO2 N2O tab: Added an additional requirement for municipal EfW plants to state the yearly average biogenic percentage of the waste by mass, and reference to a document which sets out a methodology for calculating NCV of waste from the results of C14 sampling.
A16: 2024-11-08 | B16: Permit Compliance tab: Two additional columns added + explanatory notes to the table entitled "Summary of non-compliances under the permit" to allow CCS scores to be stated where relevant.
A17: 2024-11-08 | B17: Residue Quality tab: Note added explaining application of TOC and LOI limits and asking operators to report both metrics where measured. | C17: Version 24.1a (for incinerators) - 08/11/24
A18: 2024-11-27 | B18: Operational Summary tab: table added on start-ups and shut-downs | C18: Version 24.2a (for incinerators) - 27/11/24
A19: 2025-11-27 | B19: Cover Page: Print as PDF and Print Report and pdf buttons deleted and blank columns removed; contents page deleted | C19: Version 25.1a (for incinerators) - 27/11/25
A20: 2025-11-27 | B20: Residue Quality tab renamed to "Residues", and Summary of residue handling table moved from Operational Summary tab to Residues tab.
A21: 2025-11-27 | B21: Various changes made to the Operational Data tab including • Reformatting of the rows under the Operational data heading (Rows 3-8) to make it clearer what information is required. • Amendment of the rows under the Energy Usage / Export heading (Rows 26-32) to calculate an “indicative parasitic load” (now excluding energy imported) • Amendment of the unit for gas usage from cubic feet to cubic metres (Row 50) • Some amendments to the first 2 notes and other minor edits • Deleted "Overall Availability, mean avg. of all lines, hrs" row
A22: 2025-11-27 | B22: Operational Summary tab: Note added requiring all emergency shut-downs be listed, irrespective of whether or not they were reportable.
A23: 2025-11-27 | B23: CO2 N2O tab: Note added to ask operators to ensure that relevant data reported here matches that which will be submitted under the Pollution Inventory
